Cogmind - Beta 12 X1 @@@ ROGUE MODE // 2022.07.07 @ 19:30:10 Player: aoemica Result: Heading to fleet! Performance ------------- Evolutions (9) 4500 Regions Visited (42) 8400 Robots Destroyed (758) 3790 Value Destroyed (43561) 43561 Prototype IDs (301) 6020 Alien Tech Used (13) 2600 Bonus (69501) 69501 TOTAL SCORE: 138372 Bonus ------- High Alert Combat Kills 8186 Follower Combat Kills 2617 Entered Garrisons 1800 Network Hubs Disabled 600 Met Imprinter 300 Destroyed Z-Imprinter 1000 Triggered Deep Caves Wall 500 Exposed GOLEM Chamber 500 Met Warlord at Base 500 MAIN.C Attacked Warlord 500 Warlord Defense Kills 3234 A7 Reached Mainframe 300 Met R17 at Cetus 500 Used Core Reset Matrix 3000 Met Warlord at Research 2000 Recovered Sigix Corpse 2000 Destroyed MAIN.C Guards 500 Met MAIN.C 5000 Destroyed MAIN.C Shell 5000 Destroyed MAIN.C 10000 Met Warlord at Command 2000 Met Architect 300 Started Test 138-B 500 Destroyed A8 300 Destroyed A6 400 Destroyed A5 500 Destroyed A4 700 Destroyed A3 800 Destroyed A2 1000 Destroyed Architect 15000 Win 3000 Friendly Fire -3036 Cogmind --------- Core Integrity 128/1600 Matter 248/300 Energy 1211/1240 System Corruption 2% Temperature Cool (14) Movement Treading (153) Location To Fleet Rendezvous Parts ------- > --- POWER (4) -------- Improved Quantum Reactor Improved Quantum Reactor Improved Quantum Reactor Zero-point Reactor > --- PROPULSION (8) --- Experimental Biometal Heavy Treads Enhanced Armored Heavy Treads Enhanced Armored Heavy Treads High-density Centrium Heavy Treads > --- UTILITY (11) ----- Huge Storage Unit Assembled Combat Suite Experimental Targeting Computer Advanced Particle Accelerator Experimental Weapon Cycler Femtoactuators Experimental Weapon Shielding Centrium Medium Armor Plating Experimental Powered Armor Experimental Powered Armor Advanced Force Field > --- WEAPON (3) ------- Potential Cannon A3's Sniper Rifle > --- INVENTORY (25) --- Improved Quantum Reactor Armored Heavy Treads Biometal Heavy Treads Desublimator Experimental Cooling System Advanced Energy Well (500) Advanced Energy Well (500) Experimental Energy Well (600) Spectral Analyzer Long-range Terrain Scanner Precision Energy Filter Experimental Core Shielding Experimental Powered Armor Experimental Powered Armor Experimental Powered Armor High-powered Transdimensional Reconstructor Microwarp Drive Cooled Nova Cannon Hypervelocity Multirail Core Stripper Sigix Corpse Peak State ------------ > --- POWER ------------ Improved Quantum Reactor Improved Quantum Reactor Improved Quantum Reactor Zero-point Reactor > --- PROPULSION ------- Experimental Biometal Heavy Treads Enhanced Armored Heavy Treads Enhanced Armored Heavy Treads High-density Centrium Heavy Treads > --- UTILITY ---------- Desublimator Huge Storage Unit Assembled Combat Suite Experimental Targeting Computer Advanced Particle Accelerator Femtoactuators Experimental Core Shielding Experimental Weapon Shielding Experimental Powered Armor Experimental Powered Armor Advanced Force Field > --- WEAPON ----------- A3's Sniper Rifle Core Stripper > --- INVENTORY -------- Improved Quantum Reactor Armored Heavy Treads Biometal Heavy Treads Experimental Cooling System Advanced Energy Well Advanced Energy Well Experimental Energy Well Spectral Analyzer Precision Energy Filter Experimental Weapon Cycler Centrium Medium Armor Plating Experimental Powered Armor Experimental Powered Armor Experimental Powered Armor High-powered Transdimensional Reconstructor High-powered Transdimensional Reconstructor Microwarp Drive Potential Cannon Cooled Nova Cannon Hypervelocity Multirail Sigix Corpse [Rating: 278] Favorites ----------- Power Quantum Reactor Engine Cooled Ion Engine Power Core Reinforced Fission Core Reactor Quantum Reactor Propulsion Centrium Heavy Treads Treads Centrium Heavy Treads Leg Assembled Alloy Leg Wheel Centrium Wheel Utility Huge Storage Unit Device Assembled Combat Suite Storage Huge Storage Unit Processor Experimental Terrain Scan Processor Hackware Experimental System Shield Protection Assembled Alloy Armor Artifact Microwarp Drive Weapon Assembled Focal Cannon Energy Gun Particle Gun Energy Cannon Assembled Focal Cannon Ballistic Gun Hypervelocity Multirail Ballistic Cannon Heavy Mass Driver Launcher Heavy Rocket Launcher Special Weapon Improved Plasma Cutter Impact Weapon Core Stripper Piercing Weapon CR-A16's Behemoth Slayer Build | -11 -10 -10 -9 -9 -9 -9 -7 -7 -7 -7 -6 -6 -6 -6 -6 -5 -5 -5 -5 -5 -4 -4 -4 -4 -4 -4 -4 -4 -4 -4 -3 -3 -3 -3 -3 -3 -2 -2 -2 -1 -1 -1 ------- Run | Scr Mat Min Mat Sto Gar Rec Fac Gar Fac Gar Fac Low Low Zio Dee Pro Fac Upp Upp War Pro Fac Gar Fac Gar Ext Cet Arc Hub Gar Res Gar Res Qua Sec Gar Res Tes Gar Acc Com Ac0 Slots Evolved 18 | . . . 2 . . . 4 . . . 2 . . . . . 2 . . . . 2 . . . . . . . . 2 . . . . . 2 . . 2 . . Power 3 | . . . . . . . . . . . . . . . . . 1 . . . . 1 . . . . . . . . . . . . . . . . . 1 . . Propulsion 5 | . . . . . . . 2 . . . . . . . . . . . . . . . . . . . . . . . 1 . . . . . 2 . . . . . Utility 9 | . . . 1 . . . 2 . . . 2 . . . . . 1 . . . . 1 . . . . . . . . 1 . . . . . . . . 1 . . Weapon 1 | . . . 1 . . . . . . . . . . . . . . . . . . . . . . . . . . . . . . . . . . . . . . . Parts Attached 746 | . 17 2 47 25 18 2 4 9 10 1 35 10 5 19 33 . 19 2 2 10 11 15 1 4 1 4 13 4 6 4 6 8 30 55 22 1 37 24 14 22 77 117 Power 55 | . 4 . 3 3 3 . . 1 1 . 1 . . . 2 . . . . 1 . 1 . . . . 2 . . 2 . . 1 4 1 . . 3 . 1 12 9 Engine 13 | . 4 . 3 3 2 . . . 1 . . . . . . . . . . . . . . . . . . . . . . . . . . . . . . . . . Core 5 | . . . . . 1 . . 1 . . 1 . . . 1 . . . . . . 1 . . . . . . . . . . . . . . . . . . . . Reactor 37 | . . . . . . . . . . . . . . . 1 . . . . 1 . . . . . . 2 . . 2 . . 1 4 1 . . 3 . 1 12 9 Propulsion 91 | . 6 . 17 5 2 . 2 . 2 . 3 . 1 3 1 . 7 . . 2 . . . . . 1 6 . . 2 3 . 1 8 . . 8 3 . 1 5 2 Treads 74 | . 5 . 17 5 2 . 2 . 2 . 3 . 1 3 . . . . . . . . . . . . 2 . . 2 3 . 1 7 . . 8 3 . 1 5 2 Leg 16 | . 1 . . . . . . . . . . . . . 1 . 7 . . 2 . . . . . 1 4 . . . . . . . . . . . . . . . Wheel 1 | . . . . . . . . . . . . . . . . . . . . . . . . . . . . . . . . . . 1 . . . . . . . . Hover . | . . . . . . . . . . . . . . . . . . . . . . . . . . . . . . . . . . . . . . . . . . . Flight . | . . . . . . . . . . . . . . . . . . . . . . . . . . . . . . . . . . . . . . . . . . . Utility 438 | . 3 2 12 3 7 . 2 1 5 1 23 10 4 13 16 . 12 2 2 7 10 14 . 4 . 3 3 4 6 . 3 6 26 40 21 1 29 15 13 18 26 71 Device 249 | . 1 2 5 1 4 . . . 2 1 20 9 4 6 2 . 4 1 1 5 7 8 . 4 . 1 1 2 5 . 2 5 17 27 11 1 16 9 7 9 14 35 Storage 16 | . 2 . 1 . . . . . . . . . . . 1 . 1 . . . 1 1 . . . 1 . . . . . 1 . 2 . . . 2 1 1 1 . Processor 23 | . . . 1 . 1 . 1 . 1 . 1 1 . 6 . . . . . . . . . . . . . . . . . . 2 . 1 . 3 . 1 . 3 1 Hackware 6 | . . . . . . . . . . . 1 . . . . . . . . . . . . . . 1 . . . . . . 1 . . . . . . 2 1 . Protection 119 | . . . 5 2 2 . 1 1 2 . 1 . . 1 13 . 7 1 1 2 2 5 . . . . 2 2 1 . 1 . 6 11 4 . 6 2 1 4 7 26 Artifact 25 | . . . . . . . . . . . . . . . . . . . . . . . . . . . . . . . . . . . 5 . 4 2 3 2 . 9 Weapon 162 | . 4 . 15 14 6 2 . 7 2 . 8 . . 3 14 . . . . . 1 . 1 . 1 . 2 . . . . 2 2 3 . . . 3 1 2 34 35 Energy Gun 17 | . 3 . 4 . . . . . . . . . . 1 7 . . . . . . . . . . . . . . . . . . . . . . . . . . 2 Energy Cannon 46 | . . . . 2 3 . . . . . 4 . . . . . . . . . . . . . . . . . . . . . . 1 . . . 1 1 1 19 14 Ballistic Gun 52 | . 1 . 9 10 2 1 . 4 . . . . . . . . . . . . . . . . . . . . . . . . . . . . . 2 . 1 10 12 Ballistic Cannon 9 | . . . . . 1 . . 1 1 . 1 . . 2 . . . . . . . . . . . . . . . . . . . 1 . . . . . . 1 1 Launcher 21 | . . . 2 2 . 1 . 2 1 . 3 . . . 6 . . . . . . . . . . . 2 . . . . 1 1 . . . . . . . . . Special Weapon 1 | . . . . . . . . . . . . . . . . . . . . . . . . . . . . . . . . . . . . . . . . . 1 . Impact Weapon 8 | . . . . . . . . . . . . . . . . . . . . . . . . . . . . . . . . . . 1 . . . . . . 1 6 Slashing Weapon . | . . . . . . . . . . . . . . . . . . . . . . . . . . . . . . . . . . . . . . . . . . . Piercing Weapon 8 | . . . . . . . . . . . . . . . 1 . . . . . 1 . 1 . 1 . . . . . . 1 1 . . . . . . . 2 . Special Melee Weapon . | . . . . . . . . . . . . . . . . . . . . . . . . . . . . . . . . . . . . . . . . . . . Unidentified Prototypes 55 | . . 1 1 2 . . . . . . . . 1 5 7 . 2 . . 6 . . . . . . 4 . . . . . 3 4 2 . 1 4 . 2 4 6 Corrupted Parts 3 | . . . . . . . . . . . . . . . . . . . . . . . . . . . . . . 2 . . . . . . . . . . 1 . System Corruption 10 | . . . . . . . . . . . . . . . . . . . . . . . . . . . . . . 8 . . . . . . . . . . 2 . Parts Lost 29 | . . . 2 . 2 . . . 1 . 5 . . . 3 . . . 1 . 1 . . . . 1 . . . . . . 2 . . . 1 . . 1 7 2 Power 4 | . . . . . . . . . . . . . . . . . . . . . . . . . . . . . . . . . . . . . . . . . 4 . Propulsion 1 | . . . . . . . . . . . . . . . . . . . . . . . . . . 1 . . . . . . . . . . . . . . . . Utility 20 | . . . 1 . 1 . . . 1 . 5 . . . 3 . . . 1 . 1 . . . . . . . . . . . 2 . . . 1 . . 1 2 1 Weapon 4 | . . . 1 . 1 . . . . . . . . . . . . . . . . . . . . . . . . . . . . . . . . . . . 1 1 Highest Loss Streak 5 | . . . 1 . 1 . . . 1 . 2 . . . 3 . . . 1 . 1 . . . . 1 . . . . . . 2 . . . 1 . . 1 5 1 To Critical Strikes 1 | . . . . . . . . . . . . . . . . . . . . . . . . . . 1 . . . . . . . . . . . . . . . . Average Slot Usage (%) 81 | . 96 99 99 100 83 83 84 76 78 84 85 86 84 86 82 87 87 88 88 87 87 89 90 90 90 90 87 84 85 85 77 77 76 75 76 77 74 76 78 79 72 78 Engine 1 | . 14 14 11 11 11 11 7 5 4 7 3 . . . . . . . . . . . . . . . . . . . . . . . . . . . . . . . Core 1 | . . . . . . . . 1 2 . 2 6 6 6 5 6 . . . . . 4 5 5 5 5 . . . . . . . . . . . . . . . . Reactor 6 | . . . . . . . . . . . . . . . . . 5 5 5 5 5 5 5 5 5 5 9 10 10 10 9 9 9 8 9 9 8 9 12 14 13 13 Treads 13 | . 23 28 21 22 14 11 23 23 23 23 19 20 20 24 18 6 . . . . . . . . . . 2 5 5 5 13 13 12 12 13 13 15 16 16 15 14 15 Leg 5 | . 4 . . . . . . . . . . . . . 4 18 25 27 27 26 26 25 25 25 25 25 20 14 15 15 . . . . . . . . . . . . Device 13 | . 10 13 10 12 12 11 . . 2 7 18 20 21 17 4 6 12 16 15 9 10 11 10 13 15 14 10 9 13 10 13 12 14 22 21 22 16 18 16 15 13 14 Storage 7 | . 14 14 11 11 11 11 7 7 7 7 6 6 6 6 7 12 11 11 11 11 10 10 10 10 10 10 10 10 10 10 9 9 9 8 9 9 6 4 7 4 3 3 Processor 7 | . . . . . 1 11 15 15 16 15 14 13 12 16 18 18 11 11 11 11 11 10 10 10 10 10 10 10 10 10 9 9 8 . . . 4 4 4 3 8 4 Protection 6 | . . . 10 9 8 . 7 7 5 7 4 . . 1 6 . 3 . . 6 5 8 10 6 5 5 9 9 6 10 9 9 7 8 8 4 7 8 4 6 5 17 Energy Gun 1 | . 27 14 11 1 . . . . . . . . . 2 4 . . . . . . . . . . . . . . . . . . . . . . . . . . . Energy Cannon 7 | . . . . . 2 . . . . . 5 6 6 3 4 18 16 16 16 15 15 15 14 15 14 15 14 15 15 15 13 12 12 11 13 13 12 9 8 8 3 2 Ballistic Gun 2 | . . 14 21 31 13 17 15 6 5 . . . . . . . . . . . . . . . . . . . . . . . . . . . . 2 3 2 1 1 Ballistic Cannon 1 | . . . . . 8 4 . 7 7 7 5 6 6 6 . . . . . . . . . . . . . . . . . . . . . . . . . . . . Naked Turns . | . . . . . . . . . . . . . . . . . . . . . . . . . . . . . . . . . . . . . . . . . . . Heaviest Build 253 | 10 31 31 43 45 56 45 60 91 91 77 92 79 80 84 88 88 114 114 114 116 117 138 138 138 136 198 206 211 216 211 201 216 218 234 235 219 235 233 218 236 253 253 Greatest Support 345 | 20 40 40 43 40 60 60 100 100 115 115 130 122 150 151 151 84 124 120 120 140 140 140 140 140 140 145 148 90 90 90 240 240 240 240 240 240 345 335 335 335 335 345 Greatest Overweight (x) 70 | . . . 1 1 1 . . . . . . . . . 3 1 1 . . 1 . . . . . 1 2 70 2 2 . . . 14 1 . . . . . 1 . Average Overweight (x) . | . . . . . . . . . . . . . . . . 1 . . . . . . . . . . 1 29 2 2 . . . . . . . . . . . . Largest Inventory Capacity 25 | . 15 15 15 15 15 15 15 15 15 15 15 15 15 15 15 15 15 15 15 15 15 15 15 15 15 25 25 25 25 25 25 25 25 25 25 25 25 25 25 25 25 25 Average Capacity 20 | . 14 15 15 15 15 15 15 15 15 15 15 15 15 15 15 15 15 15 15 15 14 15 15 15 15 16 25 25 25 25 25 25 25 25 25 25 25 25 25 25 24 25 Most Carried 25 | . 15 15 15 15 15 15 14 15 15 15 15 15 15 15 15 15 15 15 15 15 15 15 15 15 15 22 25 25 25 25 25 25 25 25 25 25 25 25 25 25 25 25 Average Carried 18 | . 13 15 14 14 14 14 11 12 14 14 14 14 14 14 13 14 14 15 14 14 14 14 14 14 14 15 24 24 24 24 21 23 24 21 24 25 24 24 24 24 16 23 Final Capacity 25 | 8 15 15 15 15 15 15 15 15 15 15 15 15 15 15 15 15 15 15 15 15 15 15 15 15 15 25 25 25 25 25 25 25 25 25 25 25 25 25 25 25 25 25 Final Carried 25 | 6 15 15 15 15 15 15 11 15 15 15 14 15 15 15 15 15 15 15 15 15 15 15 15 15 15 22 25 25 25 25 21 25 24 25 25 25 25 25 25 25 25 25 Class Distribution -------------------- 26% | Generator-Mutant 16% | Mutant 15% | Generator-Golem 9% | Generator-Tank 8% | Golem 4% | Scavenger-Mutant 3% | Alien-Mutant 3% | Scavenger-Tank Dominant Class ---------------- Mutant | -10/Materials Scavenger-Mutant | -10/Mines Scavenger-Tank | -9/Materials Scavenger-Tank | -9/Storage Mutant | -9/Garrison Commander-Gunner | -9/Recycling Commander-Mutant | -7/Factory Mutant | -7/Garrison Mutant | -7/Factory Mutant | -7/Garrison Mutant | -6/Factory Mutant | -6/Lower Caves Mutant | -6/Lower Caves Mutant | -6/Zion Golem | -6/Deep Caves Golem | -5/Proximity Caves Golem | -5/Factory Golem | -5/Upper Caves Golem | -5/Upper Caves Commander-Tank | -5/Warlord Golem | -4/Proximity Caves Generator-Golem | -4/Factory Generator-Golem | -4/Garrison Generator-Golem | -4/Factory Generator-Golem | -4/Garrison Generator-Tank | -4/Extension Generator-Golem | -4/Cetus Generator-Golem | -4/Archives Generator-Golem | -4/Hub_04(d) Generator-Golem | -4/Garrison Generator-Golem | -3/Research Generator-Golem | -3/Garrison Generator-Golem | -3/Research Generator-Tank | -3/Quarantine Generator-Mutant | -3/Section 7 Alien-Mutant | -3/Garrison Alien-Mutant | -2/Research Alien-Mutant | -2/Testing Alien-Mutant | -2/Garrison Generator-Mutant | -1/Access Generator-Mutant | -1/Command Generator-Mutant | -1/Access_0 Resources | -11 -10 -10 -9 -9 -9 -9 -7 -7 -7 -7 -6 -6 -6 -6 -6 -5 -5 -5 -5 -5 -4 -4 -4 -4 -4 -4 -4 -4 -4 -4 -3 -3 -3 -3 -3 -3 -2 -2 -2 -1 -1 -1 ----------- Run | Scr Mat Min Mat Sto Gar Rec Fac Gar Fac Gar Fac Low Low Zio Dee Pro Fac Upp Upp War Pro Fac Gar Fac Gar Ext Cet Arc Hub Gar Res Gar Res Qua Sec Gar Res Tes Gar Acc Com Ac0 Matter Collected 15839 | 200 164 41 930 786 887 32 . 584 430 654 2461 552 219 331 1338 20 190 10 33 100 105 104 66 40 19 69 245 40 67 73 . 177 305 991 145 . 192 307 138 684 1055 1055 Remotely 1341 | . . . . . . . . . 113 . 734 396 98 . . . . . . . . . . . . . . . . . . . . . . . . . . . . . Salvage Created 44083 | . 807 45 1948 1579 715 14 . 282 562 135 2043 241 258 . 2856 347 1651 . 175 1543 1232 1294 492 118 435 1447 808 689 1106 585 . 1235 1939 1857 1310 . 846 2115 631 3548 3225 3970 Parts 2071 | . 52 8 124 99 45 3 . 22 28 3 110 9 5 . 16 10 77 . 9 63 65 61 20 7 25 58 39 37 46 26 . 59 110 113 76 . 34 109 35 166 138 164 Haulers Intercepted 21 | . 2 . 5 5 . . . . 1 . 3 . . . . . 1 . . . . 1 . . . . . . . . . . . . . . 1 1 . 1 . . Recyclers Shooed 19 | . 1 . 2 3 . . . . . . 6 . . . . . . . . . . 2 . . . . . . 1 . . . 2 . . . . 1 . 1 . . Parts Field Recycled . | . . . . . . . . . . . . . . . . . . . . . . . . . . . . . . . . . . . . . . . . . . . Retrieved Matter . | . . . . . . . . . . . . . . . . . . . . . . . . . . . . . . . . . . . . . . . . . . . Parts Self-Destructed 108 | . . . . . . . . . . . . 7 23 1 . 10 . 1 6 . 60 . . . . . . . . . . . . . . . . . . . . . Prevented 6 | . . . . . . . . . . . . . . . . . . 6 . . . . . . . . . . . . . . . . . . . . . . . . Kills | -11 -10 -10 -9 -9 -9 -9 -7 -7 -7 -7 -6 -6 -6 -6 -6 -5 -5 -5 -5 -5 -4 -4 -4 -4 -4 -4 -4 -4 -4 -4 -3 -3 -3 -3 -3 -3 -2 -2 -2 -1 -1 -1 ------- Run | Scr Mat Min Mat Sto Gar Rec Fac Gar Fac Gar Fac Low Low Zio Dee Pro Fac Upp Upp War Pro Fac Gar Fac Gar Ext Cet Arc Hub Gar Res Gar Res Qua Sec Gar Res Tes Gar Acc Com Ac0 Combat Hostiles Destroyed 708 | . 18 3 35 24 25 2 . 14 16 8 48 9 5 . 83 6 25 . 5 27 19 17 8 1 8 13 14 4 14 8 . 19 21 21 20 . 13 25 13 44 28 45 Melee 18 | . . . . . . . . . . 1 . . . . 17 . . . . . . . . . . . . . . . . . . . . . . . . . . . Guns 189 | . 18 3 33 20 7 2 . 1 . . . . . . . . . . . . . . . . . . . . . . . . . . . . . 12 5 42 15 31 Cannons 369 | . . . . . 18 . . 8 10 7 30 9 5 . 4 6 24 . 5 27 18 17 7 1 7 13 9 4 13 8 . 15 20 19 19 . 12 13 8 2 7 4 AOE 110 | . . . 2 4 . . . 5 6 . 18 . . . 58 . 1 . . . . . . . . . 5 . . . . 3 . . . . . . . . 5 3 Classes Destroyed 33 | . 4 . 6 3 2 1 . 1 2 . . 1 . . 4 . . . . 5 . . . . . . . . . . . . . 1 1 . . . 1 . 1 . Worker 14 | . . . 3 2 . . . . . . 4 . . . . . . . . . . . . . . . . . 2 . . . . . . . . . . . 3 . Builder 19 | . . . . 1 . . . . 1 . 5 . . . . . 1 . . . . 1 . . . 1 . . 2 . . . 3 . . . . 3 . 1 . . Tunneler 3 | . . . 1 . . . . . . . 2 . . . . . . . . . . . . . . . . . . . . . . . . . . . . . . . Hauler 21 | . 2 . 5 5 . . . . 1 . 3 . . . . . 1 . . . . 1 . . . . . . . . . . . . . . 1 1 . 1 . . Recycler 21 | . 2 . 3 3 . . . . 1 . 4 . . . . . . . . . . . . . . 2 . . . . . . 2 1 . . . 1 . . 2 . Carrier 1 | . . . . . . . . . . . . . . . . . . . . . . . . . . . . . . . . . . . . . . . . . 1 . Mechanic 5 | . . . . 3 . . . . . . 2 . . . . . . . . . . . . . . . . . . . . . . . . . . . . . . . Operator 16 | . . . 2 . . . . . . . 1 . . . . . . . . . . 1 . . . . . 9 1 . . . . 1 . . . 1 . . . . Drone 2 | . . . . . . 2 . . . . . . . . . . . . . . . . . . . . . . . . . . . . . . . . . . . . Watcher 23 | . . . 5 1 . . . . . . 2 . . . . . 2 . . . . 1 . 1 . 3 2 . 1 . . . 2 . . . . 1 . 2 . . Swarmer 108 | . 6 3 8 3 5 . . 7 . . 16 4 . . . 1 3 . 4 . 7 2 . . 3 . 4 . . . . 4 3 4 4 . 5 3 4 . 5 . Cutter 5 | . . . . . . . . . . . . . . . . . . . . . . . . . . . . . . . . . . . . . . . 5 . . . Saboteur 8 | . . . . . . . . . . . . . . . . . . . . 3 . . 2 . . . . . . . . . . . . . . . . 2 1 . Grunt 211 | . 12 . 20 11 13 . . 1 10 4 17 3 5 . . 3 17 . . 8 2 3 3 . 3 2 4 . 6 5 . 10 6 4 6 . . 10 1 13 9 . Brawler 14 | . . . . 1 . . . 1 2 1 1 1 . . . . 1 . . 1 4 . . . . . . . . . . 1 . . . . . . . . . . Duelist 14 | . . . 1 1 . . . . 1 1 1 . . . . . . . . . 2 . . . . . 1 . . . . . . . . . . . 3 2 1 . Protector 6 | . . . . . . . . . 1 . . . . . . . . . . 3 2 . . . . . . . . . . . . . . . . . . . . . Sentry 62 | . . . 6 8 3 . . 2 . 1 4 . . . . 1 . . 1 . 2 4 . . . 10 . 4 2 . . 1 2 . 3 . 2 1 . 4 1 . Demolisher 3 | . . . . . . . . . . . . . . . . . . . . 2 . . . . . . . . . . . . . . . . 1 . . . . . Specialist 8 | . . . . . . . . 2 . . 2 . . . . . . . . 1 . . . . . . . . . . . . . . . . . . . 2 1 . Hunter 38 | . . . . . . . . . 1 1 2 1 . . . 1 1 . . 1 . 4 2 . . . 1 . 2 2 . . . . . . . 5 . 10 4 . Programmer 65 | . . . . . 3 . . 1 1 . 4 . . . . . 2 . . 5 . 4 . 1 1 . . . 4 1 . 2 9 . 5 . 2 6 . 11 3 . Heavy 4 | . . . . . 1 . . . . . 1 . . . . . 1 . . . . . . . . . . . . . . . . . . . . . . . 1 . Behemoth 8 | . . . . . . . . . . . . . . . . . . . . 1 1 . 1 . 1 1 . . . . . 1 1 . . . . . . . 1 . Cetus Guard 4 | . . . . . . . . . . . . . . . . . . . . . . . . . . . 4 . . . . . . . . . . . . . . . Quarantine Guard 12 | . . . . . . . . . . . . . . . . . . . . . . . . . . . . . . . . . . 12 . . . . . . . . Enhanced Grunt 26 | . . . . . . . . . . . . . . . . . . . . . . . . . . . . . . . . . . . . . . . . . . 26 Enhanced Sentry 4 | . . . . . . . . . . . . . . . . . . . . . . . . . . . . . . . . . . . . . . . . . . 4 Enhanced Hunter 8 | . . . . . . . . . . . . . . . . . . . . . . . . . . . . . . . . . . . . . . . . . . 8 Striker 4 | . . . . . . . . . . . . . . . . . . . . 1 . . . . . . . . . . . . . . . . 3 . . . . . Executioner 2 | . . . . . . . . . . . . . . . . . . . . 1 . . . . . . . . . . . . 1 . . . . . . . . . Alpha 7 2 | . . . . . . . . . . . . . . . . . . . . . . . . . . . . . . . . . . . 2 . . . . . . . Fortress 1 | . . . . . . . . . . . . . . . . . . . . . . . . . . . . . . . . . . 1 . . . . . . . . Z-Light 8 | . . . . . . . . . . . . . . . 8 . . . . . . . . . . . . . . . . . . . . . . . . . . . Decomposer 2 | . . . . . . . . . . . . . 2 . . . . . . . . . . . . . . . . . . . . . . . . . . . . . Tinkerer 1 | . . . . . . . . . . . . 1 . . . . . . . . . . . . . . . . . . . . . . . . . . . . . . Assembler 2 | . . . . . . . . . . . . . . . 2 . . . . . . . . . . . . . . . . . . . . . . . . . . . Assembled 42 | . . . . . . . . . . . . . . . 42 . . . . . . . . . . . . . . . . . . . . . . . . . . . Golem 32 | . . . . . . . . . . . . . . . 32 . . . . . . . . . . . . . . . . . . . . . . . . . . . Thug 1 | . . . . . . . . . . . . . . . . . . . . 1 . . . . . . . . . . . . . . . . . . . . . . Best Kill Streak 41 | . 7 2 6 7 6 1 . 10 9 2 11 4 4 . 41 2 9 . 5 7 5 4 3 1 3 4 4 6 4 3 . 5 4 5 4 . 6 7 5 8 10 9 Combat Bots Only 39 | . 7 2 3 5 6 1 . 10 8 2 7 4 4 . 39 2 8 . 5 7 5 3 3 1 3 2 4 3 3 3 . 5 4 4 4 . 6 5 5 7 8 9 Max Kills in Single Turn 20 | . 1 1 2 4 1 1 . 3 3 1 4 1 1 . 20 1 1 . 1 2 2 2 1 1 1 2 3 1 2 1 . 2 2 1 1 . 1 2 1 2 3 2 Gunslinging 1 | . . . 1 1 . . . . . . . . . . . . . . . . . . . . . . . . . . . . . . . . . . . . . . Exploded 20 | . . . 2 3 . . . 3 3 . 3 . . . 20 . 1 . . . . . . . . . 3 . . . . 2 . . . . . . . . 2 1 Melee 1 | . . . . . . . . . . 1 . . . . 1 . . . . . . . . . . . . . . . . . . . . . . . . . . . Uniques/NPCs Destroyed 9 | . . . . . . . . . . . . . . . 1 . . . . . . . . . . . . . . . . . . . . . . . . . 1 7 Z-Imprinter (-6/Deep Caves) MAIN.C Shell (-1/Command) A8 (-1/Access_0) A6 (-1/Access_0) A5 (-1/Access_0) A2 (-1/Access_0) A4 (-1/Access_0) Architect (-1/Access_0) A3 (-1/Access_0) Combat | -11 -10 -10 -9 -9 -9 -9 -7 -7 -7 -7 -6 -6 -6 -6 -6 -5 -5 -5 -5 -5 -4 -4 -4 -4 -4 -4 -4 -4 -4 -4 -3 -3 -3 -3 -3 -3 -2 -2 -2 -1 -1 -1 -------- Run | Scr Mat Min Mat Sto Gar Rec Fac Gar Fac Gar Fac Low Low Zio Dee Pro Fac Upp Upp War Pro Fac Gar Fac Gar Ext Cet Arc Hub Gar Res Gar Res Qua Sec Gar Res Tes Gar Acc Com Ac0 Damage Taken 32910 | . 609 72 1202 553 1468 . . 612 332 322 2487 116 57 . 1397 154 809 . 555 118 904 697 159 27 275 258 133 50 772 183 . 615 1051 1075 1984 114 769 857 647 938 3769 6770 Core 4509 | . 119 17 77 75 179 . . 45 39 11 172 6 20 . 204 . 168 . 27 28 54 53 14 . 24 44 . . 15 9 . 24 . 28 488 114 478 265 340 88 87 1197 Absorbed by Shields 15470 | . . . . . . . . 85 17 . 383 102 59 . . . . . . 114 767 394 47 9 74 237 144 52 822 198 . 654 331 1104 662 . 319 347 356 639 1475 6079 Reduced by Siege Mode 494 | . . . . . 44 . . . . . 24 . . . 38 6 . . . . . . . . . . . . 7 8 . 13 14 121 100 . . . 18 . 26 75 Redirected to Shielding 96 | . . . . . . . . . . . . . . . . . . . . . . . . . . . . . . . . . . . . . . . . . . 96 Regen/Repaired (Parts) 2070 | . . . . . . . . . . . 290 . . . . . . . . 40 . . . . . . . . . . . . . 376 . . . . . . 1364 . Core Remaining (%) 54 | 100 . 45 . . . 17 . . . 86 . . . . . 52 . . . . 72 . . . . . . . . 86 . . . . . 49 . . 25 . . 8 Volleys Fired 2319 | . 55 5 113 55 120 2 . 40 35 32 175 36 41 7 53 19 65 . 10 130 39 62 17 14 21 44 36 20 43 21 . 37 64 60 78 . 72 81 31 126 247 213 Largest 3 | . 2 2 3 3 3 2 . 1 1 1 1 1 1 1 3 3 3 . 3 3 3 3 3 3 3 3 3 3 3 3 . 3 3 3 3 . 3 3 3 2 3 1 Hottest 200 | . 105 85 99 108 114 46 . 83 83 83 85 85 85 83 114 75 75 . 75 75 75 75 75 75 75 75 75 75 75 75 . 75 75 75 75 . 75 100 100 50 200 200 Shots Fired 3999 | . 110 10 335 155 160 4 . 40 35 32 175 36 41 7 92 48 132 . 17 264 106 154 43 22 43 119 90 59 104 53 . 81 140 148 161 . 162 115 53 134 303 216 Gun 1012 | . 110 10 333 150 53 4 . 3 3 . . . . . 34 . . . . . . . . . . . . . . . . . . . . . . 23 8 88 122 71 Cannon 2822 | . . . . 2 107 . . 34 28 32 156 36 41 7 17 48 132 . 17 264 106 154 43 22 43 119 84 59 104 53 . 79 140 148 161 . 162 92 45 46 96 145 Launcher 80 | . . . 2 3 . . . 3 4 . 19 . . . 41 . . . . . . . . . . . 6 . . . . 2 . . . . . . . . . . Special 85 | . . . . . . . . . . . . . . . . . . . . . . . . . . . . . . . . . . . . . . . . . 85 . Kinetic 1056 | . . 5 222 147 113 4 . 37 31 32 94 29 9 7 14 . . . . . . . . . . . . . . . . . . . . . . 23 8 88 122 71 Thermal 2829 | . 110 5 111 5 47 . . . . . 62 7 32 . 3 48 132 . 17 264 106 154 43 22 43 119 84 59 104 53 . 79 140 148 161 . 162 92 45 46 181 145 Explosive 80 | . . . 2 3 . . . 3 4 . 19 . . . 41 . . . . . . . . . . . 6 . . . . 2 . . . . . . . . . . Electromagnetic 34 | . . . . . . . . . . . . . . . 34 . . . . . . . . . . . . . . . . . . . . . . . . . . . Robot Hit Streak 52 | . 22 2 18 19 17 6 . 14 11 7 18 9 7 . 22 16 20 . 4 23 15 10 9 3 10 15 15 15 16 24 . 20 10 35 52 . 18 18 9 19 51 23 Robot Miss Streak 9 | . 3 4 5 3 2 1 . 1 2 2 2 3 1 . 4 1 3 . 4 3 3 2 3 2 1 3 3 2 3 3 . 2 4 2 1 . 3 3 6 9 3 3 Penetration Max 3 | . . . . . 1 . . . . . 1 . . . . . . . . . . . . . . . . . . . . . . . . . . 1 . 3 3 2 Secondary Targets 13 | . 3 . 3 3 4 . . . . . . . . . . . . . . . . . . . . . . . . . . . . . . . . . . . . . Max Gunslinging Chain 1 | . 1 . 1 1 1 . . . . . . . . . . . . . . . . . . . . . . . . . . . . . . . . . . . . . Shots Hit Robots 2494 | . 79 4 195 101 87 3 . 27 23 23 124 18 9 . 142 34 77 . 7 108 65 91 24 6 21 84 59 42 59 31 . 57 71 117 109 . 45 56 29 90 197 180 Core Hits 1633 | . 37 3 76 64 31 2 . 13 28 7 86 7 8 . 320 9 41 . 4 49 33 34 8 3 10 35 34 18 40 16 . 27 38 58 35 . 17 48 21 100 131 142 Critical Kills 111 | . . . 2 . . . . . . . . . . . . . . . . . . . . . . . . . . . . . . . . . . 15 5 43 15 31 Critical Parts Destroyed 109 | . . . 2 1 . . . . . . . . . . . . . . . . . . . . . . . . . . . . . . . . . 8 . 51 17 30 Critical Strikes 264 | . . . 5 2 5 . . . 2 4 7 1 . . 7 . . . . . . . . . . . . . . . . . . . . . . 23 5 95 37 71 Burn 1 | . . . 1 . . . . . . . . . . . . . . . . . . . . . . . . . . . . . . . . . . . . . . . Destroy 235 | . . . 4 2 . . . . . . . . . . . . . . . . . . . . . . . . . . . . . . . . . 23 5 95 35 71 Blast 22 | . . . . . 5 . . . 2 4 7 1 . . 3 . . . . . . . . . . . . . . . . . . . . . . . . . . . Sever 2 | . . . . . . . . . . . . . . . . . . . . . . . . . . . . . . . . . . . . . . . . . 2 . Impale 4 | . . . . . . . . . . . . . . . 4 . . . . . . . . . . . . . . . . . . . . . . . . . . . Melee Attacks 201 | . . . . . . . . . . . . . . . 123 . . . . . 14 . 1 . 1 . . . . . . 1 2 2 . . . . . . 30 27 Kinetic 34 | . . . . . . . . . . . . . . . . . . . . . . . . . . . . . . . . . . 2 . . . . . . 5 27 Impact . | . . . . . . . . . . . . . . . . . . . . . . . . . . . . . . . . . . . . . . . . . . . Slashing . | . . . . . . . . . . . . . . . . . . . . . . . . . . . . . . . . . . . . . . . . . . . Piercing 167 | . . . . . . . . . . . . . . . 123 . . . . . 14 . 1 . 1 . . . . . . 1 2 . . . . . . . 25 . Sneak Attacks 1 | . . . . . . . . . . . . . . . . . . . . . . . 1 . . . . . . . . . . . . . . . . . . . Combat Hostiles 1 | . . . . . . . . . . . . . . . . . . . . . . . 1 . . . . . . . . . . . . . . . . . . . Follow-up Attacks . | . . . . . . . . . . . . . . . . . . . . . . . . . . . . . . . . . . . . . . . . . . . Damage Inflicted 133315 | . 963 80 3063 2016 2951 65 . 2181 2446 1709 10208 1145 622 . 13260 1556 3915 . 337 5536 3246 4419 1102 377 908 4158 3255 1979 3344 1485 . 2587 3594 5450 5084 . 2625 2379 1070 1497 8022 24681 Guns 11515 | . 929 70 2813 1518 709 58 . 33 43 . . . . . 503 . . . . . . . . . . . . . . . . . . . . . . 260 49 1201 2508 821 Cannons 89116 | . . . . . 2242 . . 1852 1455 1684 6729 1138 601 . 1190 1556 3826 . 337 5536 3013 4356 1102 314 908 4120 2545 1979 2997 1485 . 2234 3567 5422 5084 . 2625 2065 1021 223 2432 13478 Explosions 25567 | . . . 246 490 . . . 296 933 . 3318 . . . 7951 . 73 . . . . . . . . . 710 . 336 . . 353 . . . . . . . 56 1354 9451 Melee 5000 | . . . . . . . . . . . . . . . 3602 . . . . . 233 . . . . . . . . . . . . 28 . . . . . . 206 931 Ramming 806 | . 34 10 4 8 . 7 . . 15 25 161 7 21 . 14 . 16 . . . . 63 . 63 . 38 . . 11 . . . 27 . . . . 54 . 17 211 . Kinetic 25547 | . . 39 1581 1465 2828 58 . 1885 1498 1684 5637 1138 570 . 1160 . . . . . . . . . . . . . . . . . . 28 . . . 260 49 1201 2714 1752 Thermal 88399 | . 929 31 1232 53 123 . . . . . 1477 . 31 . 109 1556 3899 . 337 5536 3013 4356 1102 314 908 4120 2545 1979 2997 1485 . 2234 3567 5422 5084 . 2625 2065 1021 223 5097 22929 Explosive 13773 | . . . 246 490 . . . 296 873 . 2933 . . . 7872 . . . . . . . . . . . 710 . . . . 353 . . . . . . . . . . Electromagnetic 955 | . . . . . . . . . 60 . . . . . 503 . . . . . . . . . . . . . 336 . . . . . . . . . . 56 . . Impact . | . . . . . . . . . . . . . . . . . . . . . . . . . . . . . . . . . . . . . . . . . . . Slashing . | . . . . . . . . . . . . . . . . . . . . . . . . . . . . . . . . . . . . . . . . . . . Piercing 3835 | . . . . . . . . . . . . . . . 3602 . . . . . 233 . . . . . . . . . . . . . . . . . . . . . Highest Corruption 17 | . . . . . . . . . 2 2 3 3 . . . . 1 1 1 1 . 1 1 1 1 2 2 2 6 17 . . 8 8 3 3 1 3 3 6 17 2 Average Corruption 3 | . . . . . . . . . 1 2 2 2 . . . . 1 1 1 1 . 1 1 1 1 1 2 1 1 11 . . 5 8 2 3 1 2 3 4 10 1 Corruption Purged 24 | . . . . . . . . . . . . 3 . . . . . . . . . . . . . . . 2 . . . . . . . . . . . . 19 . Corruption Blocked 73 | . . . . . . . . . . . . . . . . . . . . . . . . . . . . . . . . . . . . . 3 . . . 70 . Effects 348 | . . . . . . . . . 2 9 32 9 . . . . . 4 3 . . 1 1 5 3 13 12 3 6 21 . . 25 3 4 3 2 15 11 24 76 61 Message Errors 86 | . . . . . . . . . . . 7 2 . . . . . 2 . . . . . 3 1 3 2 2 2 5 . . 4 1 1 . . 3 4 4 21 19 Matter Fused 91 | . . . . . . . . . . 2 12 2 . . . . . . 1 . . 1 1 . 1 5 4 . 2 6 . . 7 . . 3 . 5 3 7 16 13 Heat Flow Errors 33 | . . . . . . . . . 1 . 5 1 . . . . . . . . . . . 1 . 2 1 . . 4 . . 2 1 . . 1 1 1 1 6 5 Energy Discharges 35 | . . . . . . . . . . 3 5 1 . . . . . . . . . . . . . . 1 . . 2 . . 6 . . . . 3 . 2 5 7 Parts Rejected 5 | . . . . . . . . . 1 . . . . . . . . . . . . . . . . . . . . . . . . 1 . . . . . 2 1 . Data Loss (minor) 50 | . . . . . . . . . . 2 1 2 . . . . . . 1 . . . . 1 1 3 1 . 1 3 . . 2 . 2 . . 3 1 3 12 11 Data Loss (major) 20 | . . . . . . . . . . 2 1 . . . . . . 2 . . . . . . . . 2 . 1 . . . 1 . . . . . 1 2 6 2 Misfires 16 | . . . . . . . . . . . . . . . . . . . 1 . . . . . . . 1 . . 1 . . 2 . 1 . 1 . . 2 4 3 Alerts 5 | . . . . . . . . . . . 1 1 . . . . . . . . . . . . . . . . . . . . . . . . . . . . 2 1 Weapon Failures 7 | . . . . . . . . . . . . . . . . . . . . . . . . . . . . 1 . . . . 1 . . . . . 1 1 3 . Overload Shots 1 | . . . . . . . . . . . . . . . . . . . . . . . . . . . . . . . . . . . . . . . . . . 1 Overflow Damage 6086 | . . . . . 166 . . 218 185 40 1578 90 . . 471 143 93 . 13 172 36 124 72 52 4 94 . 109 217 39 . 76 162 122 176 . 75 140 7 . 325 1087 Projectiles 5263 | . . . . . 166 . . 218 183 40 1236 90 . . 253 143 93 . 13 172 36 123 72 29 4 94 . 109 217 39 . 54 162 122 176 . 75 106 7 . 214 1017 Explosions 733 | . . . . . . . . . 2 . 342 . . . 218 . . . . . . . . . . . . . . . . 22 . . . . . . . . 96 53 Melee 90 | . . . . . . . . . . . . . . . . . . . . . . 1 . 23 . . . . . . . . . . . . . 34 . . 15 17 Knockbacks 65 | . . . . . 9 . . 4 2 10 24 4 1 . 5 . . . . . . 1 . . . . . . . . . . . . . . . 1 . . 4 . Impact 6 | . . . . . . . . . . . . . . . . . . . . . . 1 . . . . . . . . . . . . . . . 1 . . 4 . Kinetic 56 | . . . . . 8 . . 4 2 10 22 4 1 . 5 . . . . . . . . . . . . . . . . . . . . . . . . . . . Secondary 3 | . . . . . 1 . . . . . 2 . . . . . . . . . . . . . . . . . . . . . . . . . . . . . . . Self-Inflicted Damage 670 | . . . 24 . . . . . . . 186 . . . 23 . . . . . . . . . . . 14 . 72 . . 72 . . . . . . . . . 279 Shots 15 | . . . 1 . . . . . . . 4 . . . 1 . . . . . . . . . . . 1 . 1 . . 2 . . . . . . . . . 5 Rammed 58 | . 3 2 2 4 . 2 . . 2 1 14 . 2 . 8 . . . . . . . . . . . . . . . . . 1 . . . . 1 . 2 14 . Targets Rammed 81 | . 7 2 2 5 . 2 . . 3 2 16 1 2 . 8 . 1 . . . . 5 . 1 . 4 . . 1 . . . 1 . . . . 1 . 2 15 . Kicked 15 | . 3 . . . . . . . . . . . . . . . 1 . . . . 5 . 1 . 4 . . 1 . . . . . . . . . . . . . Crushed 8 | . 1 . . 1 . . . . 1 1 2 1 . . . . . . . . . . . . . . . . . . . . . . . . . . . . 1 . Highest Temperature 377 | . 214 72 194 110 24 . . 257 227 231 203 37 . 377 132 . 21 . . 16 19 36 48 271 34 161 247 44 22 260 . 4 245 205 . . 181 240 198 221 262 278 Average Temperature 47 | . 60 33 42 34 9 . . 83 71 75 69 37 . 213 35 . 7 . . 4 6 12 21 78 9 16 54 14 7 51 . 2 57 98 . . 114 141 120 124 46 66 Received Heat Transfer 3952 | . 219 . 453 228 405 . . 73 121 165 393 8 33 . 222 9 276 . 27 12 87 41 25 . 39 67 12 12 123 27 . 69 181 67 134 . 12 32 20 122 56 182 Siege Activations 54 | . . . . . 1 . . . . . 4 3 2 . 5 2 . . . . . . . . . . . 3 1 3 . 3 2 12 3 . . 1 1 . 2 6 Total Turns 3562 | . . . . . 40 . . . . . 41 285 119 . 89 255 . . . . . . . . . . . 26 13 37 . 47 52 2317 112 . . 9 14 . 27 79 Longest Duration 1306 | . . . . . 40 . . . . . 24 211 87 . 40 249 . . . . . . . . . . . 14 13 20 . 23 42 1306 58 . . 9 14 . 18 18 Robots Corrupted 4 | . . . . . . . . . . . . . . . 4 . . . . . . . . . . . . . . . . . . . . . . . . . . . Combat Hostiles 4 | . . . . . . . . . . . . . . . 4 . . . . . . . . . . . . . . . . . . . . . . . . . . . Parts Fried 3 | . . . . . . . . . . . . . . . . . . . . . . . . . . . . . 3 . . . . . . . . . . . . . Impact Corruptions 10 | . . . . . 1 . . . . . 1 . 1 . 1 . . . . . . 1 . 1 . . . . . . . . . . . . . 2 . . 2 . Robots Melted 4 | . . . . . . . . . . . . . . . . . . . . . . . . . . . . . . . . . . 2 1 . 1 . . . . . Combat Hostiles 3 | . . . . . . . . . . . . . . . . . . . . . . . . . . . . . . . . . . 1 1 . 1 . . . . . Parts Melted 52 | . 3 . 3 . . . . . . . 2 . . . . 1 . . . 4 2 4 . . 2 3 1 3 4 2 . . 1 11 2 . . 2 . 1 1 . Heat Transferred 44267 | . 2108 74 2701 111 222 . . . . . 1632 . 37 . 75 825 2100 . 175 2788 1425 2362 575 150 500 2237 1386 1050 1575 800 . 1250 1873 2875 2775 . 1150 950 575 125 2980 4806 Parts Sabotaged 1 | . . . . . . . . . . . . . . . . . . . . . . . . . . . . . . . . . . 1 . . . . . . . . Parts Stolen . | . . . . . . . . . . . . . . . . . . . . . . . . . . . . . . . . . . . . . . . . . . . Parts Stripped . | . . . . . . . . . . . . . . . . . . . . . . . . . . . . . . . . . . . . . . . . . . . Power Chain Reactions 1 | . . . . . . . . . . . . . . . 1 . . . . . . . . . . . . . . . . . . . . . . . . . . . Missiles Intercepted 4 | . . . . . . . . . . . . . . . . . . . . . . . . . . . . . . . . . . . . . . . . . 4 . Alert | -11 -10 -10 -9 -9 -9 -9 -7 -7 -7 -7 -6 -6 -6 -6 -6 -5 -5 -5 -5 -5 -4 -4 -4 -4 -4 -4 -4 -4 -4 -4 -3 -3 -3 -3 -3 -3 -2 -2 -2 -1 -1 -1 ------- Run | Scr Mat Min Mat Sto Gar Rec Fac Gar Fac Gar Fac Low Low Zio Dee Pro Fac Upp Upp War Pro Fac Gar Fac Gar Ext Cet Arc Hub Gar Res Gar Res Qua Sec Gar Res Tes Gar Acc Com Ac0 Peak Influence 1905 | . 297 224 678 834 1183 639 1086 1380 1236 1188 1905 . . . . . 848 . . . . 411 458 384 375 826 686 462 805 898 504 959 889 716 607 388 495 723 788 1256 1163 . Initial 1072 | . . 72 . 164 276 532 1072 760 724 868 623 . . . . . . . . . . . 235 240 56 196 304 268 . 571 504 276 539 439 352 388 218 220 399 472 765 . Average 458 | . 129 38 310 407 744 526 1073 1078 921 1018 936 . . . . . 562 . . . . 252 322 314 197 281 548 49 177 806 395 640 652 479 381 388 247 456 600 745 896 . Maximum Alert Level 5 | . 1 1 2 3 4 2 3 4 4 4 5 . . . . . 3 . . . . 2 2 1 1 3 2 2 3 3 2 3 3 3 2 1 2 3 3 4 4 . Low Security (%) 19 | . 82 95 24 9 . . . . . . . . . . . . 17 . . . . 26 . 4 56 43 . 87 72 . . . . . . . 35 . . . . . Level 1 17 | . 17 4 39 30 12 20 . . . . . . . . . . 6 . . . . 68 73 95 43 33 25 10 21 . 79 24 . 27 69 100 54 26 1 . . . Level 2 26 | . . . 36 53 41 79 . . . . 26 . . . . . 42 . . . . 4 26 . . 21 74 2 . 17 20 18 62 71 29 . 10 71 65 63 . . Level 3 14 | . . . . 6 35 . 100 55 91 71 50 . . . . . 33 . . . . . . . . 1 . . 5 82 . 57 37 . . . . 1 33 16 14 . Level 4 21 | . . . . . 10 . . 44 8 28 12 . . . . . . . . . . . . . . . . . . . . . . . . . . . . 20 84 . Level 5 . | . . . . . . . . . . . 10 . . . . . . . . . . . . . . . . . . . . . . . . . . . . . . . High Security . | . . . . . . . . . . . . . . . . . . . . . . . . . . . . . . . . . . . . . . . . . . . Max Security . | . . . . . . . . . . . . . . . . . . . . . . . . . . . . . . . . . . . . . . . . . . . Squads Dispatched 110 | . 7 . 7 7 . . 1 . 9 . 18 . . . . . 9 . . . 1 9 . 1 . 1 . . 5 . . . 4 1 3 . . 5 . 10 12 . Investigation 19 | . 4 . 3 1 . . 1 . 2 . 3 . . . . . 1 . . . . 2 . . . . . . 1 . . . . . . . . . . 1 . . Extermination 26 | . . . . . . . . . 3 . 5 . . . . . . . . . . 2 . . . . . . 3 . . . 3 . 2 . . 2 . 2 4 . Reinforcement 29 | . 3 . 4 1 . . . . 1 . 3 . . . . . 4 . . . . 1 . 1 . . . . 1 . . . . . 1 . . 2 . 5 2 . Assault 25 | . . . . 2 . . . . 3 . 4 . . . . . 3 . . . 1 . . . . 1 . . . . . . 1 1 . . . 1 . 2 6 . Garrison 11 | . . . . 3 . . . . . . 3 . . . . . 1 . . . . 4 . . . . . . . . . . . . . . . . . . . . Intercept . | . . . . . . . . . . . . . . . . . . . . . . . . . . . . . . . . . . . . . . . . . . . Searches Triggered . | . . . . . . . . . . . . . . . . . . . . . . . . . . . . . . . . . . . . . . . . . . . Construction Impeded 4 | . . . 1 . . . . . . . 2 . . . . . . . . . . . . . . . . . 1 . . . . . . . . . . . . . Haulers Reinforced 3 | . . . . . . . . . . . . . . . . . 1 . . . . 1 . . . . . . . . . . . . . . . . . 1 . . Active Scanning Responses . | . . . . . . . . . . . . . . . . . . . . . . . . . . . . . . . . . . . . . . . . . . . Cargo Convoy Interrupts . | . . . . . . . . . . . . . . . . . . . . . . . . . . . . . . . . . . . . . . . . . . . Stealth | -11 -10 -10 -9 -9 -9 -9 -7 -7 -7 -7 -6 -6 -6 -6 -6 -5 -5 -5 -5 -5 -4 -4 -4 -4 -4 -4 -4 -4 -4 -4 -3 -3 -3 -3 -3 -3 -2 -2 -2 -1 -1 -1 --------- Run | Scr Mat Min Mat Sto Gar Rec Fac Gar Fac Gar Fac Low Low Zio Dee Pro Fac Upp Upp War Pro Fac Gar Fac Gar Ext Cet Arc Hub Gar Res Gar Res Qua Sec Gar Res Tes Gar Acc Com Ac0 Distress Signals 58 | . 1 . 4 2 . . . . . . 1 . . . . . 4 . . . . 2 . . . 3 1 . 3 . . . 1 . 2 . 8 1 . 2 23 . Communications Jammed 263 | . . . . . . . . . . 17 19 . . . . . . . . . . . . 2 . 19 . . 1 . . . 1 1 54 . . 96 . 53 . . Distress Signals 256 | . . . . . . . . . . 17 14 . . . . . . . . . . . . 2 . 19 . . 1 . . . 1 1 54 . . 96 . 51 . . Times Spotted 1073 | . 28 5 52 38 29 7 . 18 28 13 63 8 4 . 87 8 44 . 5 88 23 23 7 6 8 37 19 6 36 9 . 20 28 25 35 . 28 32 14 53 58 81 Peak Tracking Total 37 | . 8 3 4 8 7 2 . 8 9 3 6 4 4 . 37 6 8 . 5 17 7 4 3 3 4 4 4 1 15 3 . 6 5 5 5 . 9 7 3 6 9 5 Tactical Retreats 48 | . 1 . 1 . 1 . . 1 . 4 2 . . . 9 2 7 . . 1 . 1 2 . 1 1 . . . . . 1 . . 2 . 3 1 . 6 . 1 Traps | -11 -10 -10 -9 -9 -9 -9 -7 -7 -7 -7 -6 -6 -6 -6 -6 -5 -5 -5 -5 -5 -4 -4 -4 -4 -4 -4 -4 -4 -4 -4 -3 -3 -3 -3 -3 -3 -2 -2 -2 -1 -1 -1 ------- Run | Scr Mat Min Mat Sto Gar Rec Fac Gar Fac Gar Fac Low Low Zio Dee Pro Fac Upp Upp War Pro Fac Gar Fac Gar Ext Cet Arc Hub Gar Res Gar Res Qua Sec Gar Res Tes Gar Acc Com Ac0 Traps Triggered 27 | . 2 . 3 1 . . . 1 . . 2 . . . . . . . . . . . 1 . 2 1 . . . 4 . 2 . 3 . 1 . . . 1 3 . Indirectly . | . . . . . . . . . . . . . . . . . . . . . . . . . . . . . . . . . . . . . . . . . . . Trap Hack Attempts . | . . . . . . . . . . . . . . . . . . . . . . . . . . . . . . . . . . . . . . . . . . . Triggered . | . . . . . . . . . . . . . . . . . . . . . . . . . . . . . . . . . . . . . . . . . . . Disarmed 6 | . . . . . . . . . . . . . . . . . . . . . . . . . . . . . . . . . . . . . . . . . 6 . Reprogrammed . | . . . . . . . . . . . . . . . . . . . . . . . . . . . . . . . . . . . . . . . . . . . Reused . | . . . . . . . . . . . . . . . . . . . . . . . . . . . . . . . . . . . . . . . . . . . Traps Extracted . | . . . . . . . . . . . . . . . . . . . . . . . . . . . . . . . . . . . . . . . . . . . Installed . | . . . . . . . . . . . . . . . . . . . . . . . . . . . . . . . . . . . . . . . . . . . Triggered 15 | . . . . . . . . . . . . . 1 . . . . . . 13 . . . . . . . . . . . . . . . . . . . . 1 . Exploded 1 | . . . . . . . . . . . . . . . . . . . . . . . . . . . . . . . . 1 . . . . . . . . . . Machines | -11 -10 -10 -9 -9 -9 -9 -7 -7 -7 -7 -6 -6 -6 -6 -6 -5 -5 -5 -5 -5 -4 -4 -4 -4 -4 -4 -4 -4 -4 -4 -3 -3 -3 -3 -3 -3 -2 -2 -2 -1 -1 -1 ---------- Run | Scr Mat Min Mat Sto Gar Rec Fac Gar Fac Gar Fac Low Low Zio Dee Pro Fac Upp Upp War Pro Fac Gar Fac Gar Ext Cet Arc Hub Gar Res Gar Res Qua Sec Gar Res Tes Gar Acc Com Ac0 Machines Disabled 134 | . . . . 2 3 . . 1 8 1 11 . . . 2 . 8 . . 4 1 1 1 2 2 3 3 3 11 2 . 2 3 7 9 . 1 12 4 2 10 15 Max in Single Turn 7 | . . . . 1 1 . . . 4 1 2 . . . 1 . 4 . . 2 1 1 1 1 1 1 1 1 7 1 . 1 1 1 1 . 1 1 1 1 2 2 Garrison Access 7 | . . . . . . . . . . . 1 . . . . . 1 . . . . . . . . . . . . . . . 1 . . . 3 . . 1 . . Garrison Relay 2 | . . . . . 1 . . . . . . . . . . . . . . . . . . . . . . . . . . 1 . . . . . . . . . . Phase Generator 2 | . . . . . . . . . . . . . . . . . . . . . . . . . . . . . . . . 1 . . . . . . . . 1 . Network Hub 3 | . . . . . . . . . . . . . . . . . . . . . . . . . . . . . 3 . . . . . . . . . . . . . Machines Sabotaged . | . . . . . . . . . . . . . . . . . . . . . . . . . . . . . . . . . . . . . . . . . . . Garrisons Compromised . | . . . . . . . . . . . . . . . . . . . . . . . . . . . . . . . . . . . . . . . . . . . Overloaded Fab Kills . | . . . . . . . . . . . . . . . . . . . . . . . . . . . . . . . . . . . . . . . . . . . Hacking | -11 -10 -10 -9 -9 -9 -9 -7 -7 -7 -7 -6 -6 -6 -6 -6 -5 -5 -5 -5 -5 -4 -4 -4 -4 -4 -4 -4 -4 -4 -4 -3 -3 -3 -3 -3 -3 -2 -2 -2 -1 -1 -1 --------- Run | Scr Mat Min Mat Sto Gar Rec Fac Gar Fac Gar Fac Low Low Zio Dee Pro Fac Upp Upp War Pro Fac Gar Fac Gar Ext Cet Arc Hub Gar Res Gar Res Qua Sec Gar Res Tes Gar Acc Com Ac0 Machines Accessed 139 | . 5 1 11 12 2 3 1 1 5 . 9 1 . . . . 4 1 1 . . 4 . 7 1 7 . . 7 1 2 2 6 9 6 1 3 4 . 8 12 2 Terminals 95 | . 3 . 8 10 2 1 . 1 2 . 5 . . . . . 3 . . . . 1 . 2 1 7 . . 6 1 1 2 5 7 5 1 1 3 . 6 11 . Fabricators 9 | . . . . . . . . . 2 . 1 . . . . . 1 . . . . 2 . 3 . . . . . . . . . . . . . . . . . . Repair Stations 6 | . . . 1 . . . . . . . 2 . . . . . . . . . . . . . . . . . . . . . . 1 . . . . . 1 1 . Recycling Units 7 | . 2 . 2 1 . 2 . . . . . . . . . . . . . . . . . . . . . . . . . . . . . . . . . . . . Scanalyzers 2 | . . . . . . . . . . . . . . . . . . . . . . . . 1 . . . . . . . . . 1 . . . . . . . . Garrison Access 14 | . . . . 1 . . 1 . 1 . 1 . . . . . . . . . . 1 . 1 . . . . 1 . 1 . 1 . 1 . 2 1 . 1 . . Total Hacks 417 | . 11 1 24 25 4 9 3 2 10 . 19 1 . . . . 11 1 1 . . 11 . 14 4 28 . . 19 9 8 4 28 31 24 1 6 14 . 32 58 4 Successful 185 | . 5 1 10 11 2 6 1 2 2 . 6 1 . . . . 4 1 1 . . 6 . 9 1 16 . . 8 4 2 2 9 10 14 1 2 5 . 12 27 4 Failed 231 | . 5 . 14 14 2 3 2 . 8 . 13 . . . . . 7 . . . . 5 . 5 3 12 . . 11 5 6 2 19 21 10 . 4 9 . 20 31 . Catastrophic 45 | . 2 . 3 1 . . . . 3 . 2 . . . . . . . . . . 1 . 2 1 2 . . 2 1 . 1 6 6 2 . . 1 . 6 3 . Database Lockouts 1 | . 1 . . . . . . . . . . . . . . . . . . . . . . . . . . . . . . . . . . . . . . . . . Manual 161 | . 11 . 17 11 2 8 . 1 2 . 4 . . . . . 7 . . . . 2 . 7 . 13 1 . 15 8 . 1 3 10 8 . . 5 . 3 22 . Terminals 329 | . 8 . 21 23 4 5 . 2 4 . 9 . . . . . 10 . . . . 3 . 6 4 28 . . 18 9 7 4 27 26 20 1 2 12 . 24 52 . Fabricators 21 | . . . . . . . . . 5 . 3 . . . . . 1 . . . . 6 . 6 . . . . . . . . . . . . . . . . . . Repair Stations 20 | . . . 1 . . . . . . . 5 . . . . . . . . . . . . . . . . . . . . . . 3 . . . . . 5 6 . Recycling Units 10 | . 3 . 2 1 . 4 . . . . . . . . . . . . . . . . . . . . . . . . . . . . . . . . . . . . Scanalyzers 3 | . . . . . . . . . . . . . . . . . . . . . . . . 1 . . . . . . . . . 2 . . . . . . . . Garrison Access 26 | . . . . 1 . . 3 . 1 . 2 . . . . . . . . . . 2 . 1 . . . . 1 . 1 . 1 . 4 . 4 2 . 3 . . Terminal Hacks 105 | . 1 1 6 7 2 2 . 1 . . 1 1 . . . . 2 1 1 . . 1 . 2 1 13 . . 2 2 1 2 5 4 9 1 . 4 . 10 18 4 Record 1 | . . . . . . . . . . . . . . . . . . . . . . . . . . . . . . . . . . . . . . . . . . 1 Part Schematic 1 | . 1 . . . . . . . . . . . . . . . . . . . . . . . . . . . . . . . . . . . . . . . . . Robot Analysis 1 | . . . 1 . . . . . . . . . . . . . . . . . . . . . . . . . . . . . . . . . . . . . . . Prototype ID Bank 10 | . . . 1 . . . . . . . . . . . . . . . . . . . . . . 4 . . 1 . . . . 2 1 . . . . 1 . . Open Door 14 | . . 1 . 3 . . . . . . . 1 . . . . . 1 1 . . . . . . 1 . . . . . . . . 2 . . . . 3 1 . Level Access Points 1 | . . . . . . . . . . . . . . . . . . . . . . . . . . . . . . . . . 1 . . . . . . . . . Branch Access Points 5 | . . . 1 . . . . . . . 1 . . . . . 1 . . . . . . . . . . . . . . . 1 . . . . . . 1 . . Emergency Access Points 8 | . . . . . 1 . . . . . . . . . . . . . . . . . . . 1 . . . . 1 . 1 . . 1 . . . . . 3 . Machine Index 1 | . . . . . . . . . . . . . . . . . . . . . . . . . . . . . . . . . . . . . . . . . 1 . Terminal Index 2 | . . . . . . . . . . . . . . . . . . . . . . . . . . . . . . . . . 1 . . . . . . . 1 . Fabricator Index 1 | . . . . . . . . . . . . . . . . . . . . . . 1 . . . . . . . . . . . . . . . . . . . . Alert Level 17 | . . . 1 1 . . . . . . . . . . . . . . . . . . . 1 . 3 . . . 1 . . 1 2 2 . . 2 . 2 1 . Unreport Threat 20 | . . . 2 3 . 2 . . . . . . . . . . . . . . . . . 1 . 2 . . . . 1 . 1 . 2 . . 2 . 2 2 . Locate Traps 7 | . . . . . . . . . . . . . . . . . . . . . . . . . . 2 . . 1 . . . . . . . . . . 1 3 . Disarm Traps 1 | . . . . . . . . . . . . . . . . . . . . . . . . . . . . . . . . . . . . . . . . . 1 . Patrol Status 2 | . . . . . . . . . . . . . . . . . . . . . . . . . . . . . . . . . . . . . . . . . 2 . Registered Prototypes 1 | . . . . . . . . . . . . . . . . . . . . . . . . . . . . . . . . . . . . . . . . . 1 . Zone Layout 3 | . . . . . . . . . . . . . . . . . 1 . . . . . . . . 1 . . . . . . . . 1 . . . . . . . Garrison Registry 2 | . . . . . . . . 1 . . . . . . . . . . . . . . . . . . . . . . . . . . . 1 . . . . . . Patrol Navigation 1 | . . . . . 1 . . . . . . . . . . . . . . . . . . . . . . . . . . . . . . . . . . . . . Security Stations 1 | . . . . . . . . . . . . . . . . . . . . . . . . . . . . . . . . 1 . . . . . . . . . . Disengage Seal 2 | . . . . . . . . . . . . . . . . . . . . . . . . . . . . . . . . . . . . . . . . . 2 . Gate Test 138-A 1 | . . . . . . . . . . . . . . . . . . . . . . . . . . . . . . . . . . . . . . . . . . 1 Gate Test 138-B 1 | . . . . . . . . . . . . . . . . . . . . . . . . . . . . . . . . . . . . . . . . . . 1 Gate Test 138-END 1 | . . . . . . . . . . . . . . . . . . . . . . . . . . . . . . . . . . . . . . . . . . 1 Fabricator Hacks 8 | . . . . . . . . . 1 . 1 . . . . . . . . . . 3 . 3 . . . . . . . . . . . . . . . . . . Network Status 1 | . . . . . . . . . . . . . . . . . . . . . . . . 1 . . . . . . . . . . . . . . . . . . Load Schematic 4 | . . . . . . . . . 1 . 1 . . . . . . . . . . 2 . . . . . . . . . . . . . . . . . . . . Build 3 | . . . . . . . . . . . . . . . . . . . . . . 1 . 2 . . . . . . . . . . . . . . . . . . Repair Station Hacks 8 | . . . . . . . . . . . 3 . . . . . . . . . . . . . . . . . . . . . . 2 . . . . . 1 2 . Scan Component 5 | . . . . . . . . . . . 2 . . . . . . . . . . . . . . . . . . . . . . 1 . . . . . 1 1 . Repair 3 | . . . . . . . . . . . 1 . . . . . . . . . . . . . . . . . . . . . . 1 . . . . . . 1 . Recycling Unit Hacks 1 | . . . . . . 1 . . . . . . . . . . . . . . . . . . . . . . . . . . . . . . . . . . . . Retrieve Components 1 | . . . . . . 1 . . . . . . . . . . . . . . . . . . . . . . . . . . . . . . . . . . . . Scanalyzer 3 | . . . . . . . . . . . . . . . . . . . . . . . . 1 . . . . . . . . . 2 . . . . . . . . Insert Component 2 | . . . . . . . . . . . . . . . . . . . . . . . . 1 . . . . . . . . . 1 . . . . . . . . Analyze 1 | . . . . . . . . . . . . . . . . . . . . . . . . . . . . . . . . . . 1 . . . . . . . . Garrison Access Hacks 13 | . . . . 1 . . 1 . 1 . . . . . . . . . . . . 1 . 1 . . . . 1 . 1 . 1 . 1 . 2 1 . 1 . . Unlock Access 9 | . . . . 1 . . 1 . 1 . . . . . . . . . . . . 1 . 1 . . . . 1 . 1 . . . 1 . . 1 . . . . Seal Access 4 | . . . . . . . . . . . . . . . . . . . . . . . . . . . . . . . . . 1 . . . 2 . . 1 . . Unauthorized Hacks 47 | . 4 . 4 3 . 3 . 1 . . 1 . . . . . 2 . . . . 1 . 2 . 3 . . 5 2 . . 3 2 4 . . . . . 7 . Terminals 39 | . 2 . 2 2 . 1 . 1 . . 1 . . . . . 2 . . . . 1 . 1 . 3 . . 5 2 . . 3 2 4 . . . . . 7 . Track 6 | . . . . . . . . . . . . . . . . . . . . . . . . . . . . . . 1 . . . . 1 . . . . . 4 . Botnet 24 | . 1 . 2 2 . 1 . 1 . . 1 . . . . . 2 . . . . 1 . 1 . 2 . . 2 1 . . 2 2 1 . . . . . 2 . Detonate 1 | . . . . . . . . . . . . . . . . . . . . . . . . . . . . . 1 . . . . . . . . . . . . . Disrupt 2 | . . . . . . . . . . . . . . . . . . . . . . . . . . . . . . . . . . . 1 . . . . . 1 . Operators 5 | . 1 . . . . . . . . . . . . . . . . . . . . . . . . 1 . . 1 . . . 1 . 1 . . . . . . . Sabotage 1 | . . . . . . . . . . . . . . . . . . . . . . . . . . . . . 1 . . . . . . . . . . . . . Fabricators 1 | . . . . . . . . . . . . . . . . . . . . . . . . 1 . . . . . . . . . . . . . . . . . . Haulers 1 | . . . . . . . . . . . . . . . . . . . . . . . . 1 . . . . . . . . . . . . . . . . . . Repair Stations . | . . . . . . . . . . . . . . . . . . . . . . . . . . . . . . . . . . . . . . . . . . . Recycling Units 7 | . 2 . 2 1 . 2 . . . . . . . . . . . . . . . . . . . . . . . . . . . . . . . . . . . . Reject 1 | . . . . 1 . . . . . . . . . . . . . . . . . . . . . . . . . . . . . . . . . . . . . . Tunnel 6 | . 2 . 2 . . 2 . . . . . . . . . . . . . . . . . . . . . . . . . . . . . . . . . . . . Scanalyzers . | . . . . . . . . . . . . . . . . . . . . . . . . . . . . . . . . . . . . . . . . . . . Garrison Access . | . . . . . . . . . . . . . . . . . . . . . . . . . . . . . . . . . . . . . . . . . . . Data Cores Recovered 6 | . . . 1 . . . . . . . 1 . . . . . 1 . . . . 1 . . . . . . . . . . 1 . . . . 1 . . . . Used 2 | . . . . . . . . . . . 1 . . . . . . . . . . . . . . . . . . . . . 1 . . . . . . . . . Hacking Detections 97 | . 3 . 9 7 1 1 1 1 4 . 9 . . . . . 4 . . . . 4 . 5 1 7 . . 5 1 1 2 5 5 3 . 2 3 . 4 9 . Full Trace Events 11 | . . . . 1 . . 1 . 2 . 3 . . . . . 1 . . . . 2 . . . . . . . . . . . . . . . . . 1 . . Feedback Events 1 | . . . . . . . . . 1 . . . . . . . . . . . . . . . . . . . . . . . . . . . . . . . . . Corruption 1 | . . . . . . . . . 1 . . . . . . . . . . . . . . . . . . . . . . . . . . . . . . . . . Feedback Blocked . | . . . . . . . . . . . . . . . . . . . . . . . . . . . . . . . . . . . . . . . . . . . Robot Schematics Acquired . | . . . . . . . . . . . . . . . . . . . . . . . . . . . . . . . . . . . . . . . . . . . Robots Built . | . . . . . . . . . . . . . . . . . . . . . . . . . . . . . . . . . . . . . . . . . . . Authchips . | . . . . . . . . . . . . . . . . . . . . . . . . . . . . . . . . . . . . . . . . . . . Time . | . . . . . . . . . . . . . . . . . . . . . . . . . . . . . . . . . . . . . . . . . . . Total Robot Build Rating . | . . . . . . . . . . . . . . . . . . . . . . . . . . . . . . . . . . . . . . . . . . . Part Schematics Acquired 2 | . 1 . . . . . . . . . . . . . . . . . . . . . . . . . . . . . . . . 1 . . . . . . . . Parts Built 5 | . . . . . . . . . . . . . . . . . . . . . . 1 . 4 . . . . . . . . . . . . . . . . . . Authchips . | . . . . . . . . . . . . . . . . . . . . . . . . . . . . . . . . . . . . . . . . . . . Time 248 | . . . . . . . . . . . . . . . . . . . . . . 51 . 197 . . . . . . . . . . . . . . . . . . Total Part Build Rating 33 | . . . . . . . . . . . . . . . . . . . . . . 1 . 32 . . . . . . . . . . . . . . . . . . Parts Repaired 3 | . . . . . . . . . . . 1 . . . . . . . . . . . . . . . . . . . . . . 1 . . . . . . 1 . Time 124 | . . . . . . . . . . . 34 . . . . . . . . . . . . . . . . . . . . . . 54 . . . . . . 36 . Parts Recycled . | . . . . . . . . . . . . . . . . . . . . . . . . . . . . . . . . . . . . . . . . . . . Recycled Matter . | . . . . . . . . . . . . . . . . . . . . . . . . . . . . . . . . . . . . . . . . . . . Retrieved Matter . | . . . . . . . . . . . . . . . . . . . . . . . . . . . . . . . . . . . . . . . . . . . Retrieved Components 6 | . . . . . . 6 . . . . . . . . . . . . . . . . . . . . . . . . . . . . . . . . . . . . Parts Scanalyzed 1 | . . . . . . . . . . . . . . . . . . . . . . . . . . . . . . . . . . 1 . . . . . . . . Part Schematics Acquired 1 | . . . . . . . . . . . . . . . . . . . . . . . . . . . . . . . . . . 1 . . . . . . . . Parts Damaged . | . . . . . . . . . . . . . . . . . . . . . . . . . . . . . . . . . . . . . . . . . . . Bothacking | -11 -10 -10 -9 -9 -9 -9 -7 -7 -7 -7 -6 -6 -6 -6 -6 -5 -5 -5 -5 -5 -4 -4 -4 -4 -4 -4 -4 -4 -4 -4 -3 -3 -3 -3 -3 -3 -2 -2 -2 -1 -1 -1 ------------ Run | Scr Mat Min Mat Sto Gar Rec Fac Gar Fac Gar Fac Low Low Zio Dee Pro Fac Upp Upp War Pro Fac Gar Fac Gar Ext Cet Arc Hub Gar Res Gar Res Qua Sec Gar Res Tes Gar Acc Com Ac0 Used RIF Installer . | . . . . . . . . . . . . . . . . . . . . . . . . . . . . . . . . . . . . . . . . . . . Robots Hacked . | . . . . . . . . . . . . . . . . . . . . . . . . . . . . . . . . . . . . . . . . . . . Non-combat . | . . . . . . . . . . . . . . . . . . . . . . . . . . . . . . . . . . . . . . . . . . . Combat . | . . . . . . . . . . . . . . . . . . . . . . . . . . . . . . . . . . . . . . . . . . . Robot Hacks Applied . | . . . . . . . . . . . . . . . . . . . . . . . . . . . . . . . . . . . . . . . . . . . Relay Couplers Released 25 | . . . . . 3 . . 4 . . 2 . . . . . 1 . . . . . . 4 . . . . . . . 5 . . . . 6 . . . . . Machine Destruction 13 | . . . . . 3 . . . . . 2 . . . . . 1 . . . . . . . . . . . . . . 5 . . . . 2 . . . . . Programmers 12 | . . . . . . . . 4 . . . . . . . . . . . . . . . 4 . . . . . . . . . . . . 4 . . . . . Fabnet Peak Effective % . | . . . . . . . . . . . . . . . . . . . . . . . . . . . . . . . . . . . . . . . . . . . Robots Rewired 40 | . . . . . . 11 . 3 . . . . . . . . . . . 5 . . 1 . . 18 . . . . . 2 . . . . . . . . . . Allies Hacked . | . . . . . . . . . . . . . . . . . . . . . . . . . . . . . . . . . . . . . . . . . . . Hacks Repelled . | . . . . . . . . . . . . . . . . . . . . . . . . . . . . . . . . . . . . . . . . . . . Allies | -11 -10 -10 -9 -9 -9 -9 -7 -7 -7 -7 -6 -6 -6 -6 -6 -5 -5 -5 -5 -5 -4 -4 -4 -4 -4 -4 -4 -4 -4 -4 -3 -3 -3 -3 -3 -3 -2 -2 -2 -1 -1 -1 -------- Run | Scr Mat Min Mat Sto Gar Rec Fac Gar Fac Gar Fac Low Low Zio Dee Pro Fac Upp Upp War Pro Fac Gar Fac Gar Ext Cet Arc Hub Gar Res Gar Res Qua Sec Gar Res Tes Gar Acc Com Ac0 Total Allies 55 | . . 2 . 2 1 11 . 5 . . . . . 5 . . . . . 5 . . 1 . . 19 2 . . . . 2 . . . . . . . . . . Largest Group 15 | . . 2 2 2 2 11 8 8 6 . . . . 5 5 . . . . 5 5 1 1 . . 15 3 . . . . 2 2 . . . . . . . . . Highest-Rated Group 693 | . . 45 45 62 90 128 94 204 204 . . . . 126 126 . . . . 285 285 60 85 . . 693 332 . . . . 238 220 . . . . . . . . . Highest-Rated Ally 159 | . . 31 31 31 90 27 27 73 73 . . . . 31 31 . . . . 65 65 60 85 . . 159 159 . . . . 119 110 . . . . . . . . . Warlord Squad Rendezvous 4 | . . . . . . . . . . . . . . . . . 4 . . . . . . . . . . . . . . . . . . . . . . . . . Infantry 1 | . . . . . . . . . . . . . . . . . 1 . . . . . . . . . . . . . . . . . . . . . . . . . Muscle 1 | . . . . . . . . . . . . . . . . . 1 . . . . . . . . . . . . . . . . . . . . . . . . . Ranger 1 | . . . . . . . . . . . . . . . . . 1 . . . . . . . . . . . . . . . . . . . . . . . . . Pyro 1 | . . . . . . . . . . . . . . . . . 1 . . . . . . . . . . . . . . . . . . . . . . . . . Total Orders 26 | . . . . . 1 . . 9 . . 4 . . . . . . . . 7 . . . . . 3 . . . . . . 2 . . . . . . . . . STAY 10 | . . . . . . . . 5 . . . . . . . . . . . 2 . . . . . 2 . . . . . . 1 . . . . . . . . . FOLLOW 11 | . . . . . . . . 4 . . . . . . . . . . . 5 . . . . . 1 . . . . . . 1 . . . . . . . . . EXPLORE 3 | . . . . . . . . . . . 3 . . . . . . . . . . . . . . . . . . . . . . . . . . . . . . . RETURN 2 | . . . . . 1 . . . . . 1 . . . . . . . . . . . . . . . . . . . . . . . . . . . . . . . Ally Attacks 452 | . . 5 11 40 6 37 . 32 93 . 1 . . . 25 . . . . 33 18 . 3 . . 100 35 . . . . 7 6 . . . . . . . . . Total Damage 12167 | . . 83 104 594 88 242 . 833 2042 . 2 . . . 244 . . . . 1251 788 . 98 . . 3883 1259 . . . . 334 322 . . . . . . . . . Kills 86 | . . 3 3 9 4 10 . 5 14 . . . . . . . . . . 10 2 . . . . 17 7 . . . . 1 1 . . . . . . . . . Allies Corrupted 2 | . . . . . . . . . . . . . . . . . . . . . 1 . . . . . . . . . . . 1 . . . . . . . . . Allies Melted 5 | . . . . . . . . . . . . . . . . . 1 . . 1 . . . . . 2 . . . . . . . . . . 1 . . . . . Intel | -11 -10 -10 -9 -9 -9 -9 -7 -7 -7 -7 -6 -6 -6 -6 -6 -5 -5 -5 -5 -5 -4 -4 -4 -4 -4 -4 -4 -4 -4 -4 -3 -3 -3 -3 -3 -3 -2 -2 -2 -1 -1 -1 ------- Run | Scr Mat Min Mat Sto Gar Rec Fac Gar Fac Gar Fac Low Low Zio Dee Pro Fac Upp Upp War Pro Fac Gar Fac Gar Ext Cet Arc Hub Gar Res Gar Res Qua Sec Gar Res Tes Gar Acc Com Ac0 Robot Analysis Total 1 | . . . 1 . . . . . . . . . . . . . . . . . . . . . . . . . . . . . . . . . . . . . . . Derelict Logs Recovered 9 | . . 1 . . . . . . . . . . 2 1 . 1 . 1 1 . 2 . . . . . . . . . . . . . . . . . . . . . Drone Launches 6 | . . . . . 2 . . . . . 4 . . . . . . . . . . . . . . . . . . . . . . . . . . . . . . . Drone Recoveries 3 | . . . . . 2 . . . . . 1 . . . . . . . . . . . . . . . . . . . . . . . . . . . . . . . Exploration | -11 -10 -10 -9 -9 -9 -9 -7 -7 -7 -7 -6 -6 -6 -6 -6 -5 -5 -5 -5 -5 -4 -4 -4 -4 -4 -4 -4 -4 -4 -4 -3 -3 -3 -3 -3 -3 -2 -2 -2 -1 -1 -1 ------------- Run | Scr Mat Min Mat Sto Gar Rec Fac Gar Fac Gar Fac Low Low Zio Dee Pro Fac Upp Upp War Pro Fac Gar Fac Gar Ext Cet Arc Hub Gar Res Gar Res Qua Sec Gar Res Tes Gar Acc Com Ac0 Turns Passed 77970 | . 1262 1386 2832 1328 1582 391 28 1230 1114 522 2138 1462 1889 2867 3475 1364 1041 766 497 1617 2335 982 298 420 360 1642 701 6233 783 568 318 810 1333 8782 1002 113 1239 977 628 1440 12672 5543 Spaces Moved 33699 | 1 670 558 1140 475 695 135 12 640 585 236 906 521 991 1689 1331 545 554 573 348 646 685 485 161 285 178 885 239 355 279 206 52 385 456 3099 626 125 802 536 444 631 6124 3410 Core 145 | . . . . . . . . . . . . . . . . . . . . . . . . . . . . 145 . . . . . . . . . . . . . . Treads 25626 | . 535 558 1140 475 695 135 12 640 585 236 906 521 991 1689 950 . . . . . . . . . . . . . . 1 52 385 456 3098 393 68 570 413 292 599 6124 3107 Legs 6795 | 1 135 . . . . . . . . . . . . . 381 545 554 573 348 646 685 485 161 285 178 885 239 210 279 205 . . . . . . . . . . . . Wheels 1 | . . . . . . . . . . . . . . . . . . . . . . . . . . . . . . . . . . 1 . . . . . . . . Hover . | . . . . . . . . . . . . . . . . . . . . . . . . . . . . . . . . . . . . . . . . . . . Flight . | . . . . . . . . . . . . . . . . . . . . . . . . . . . . . . . . . . . . . . . . . . . Fastest Speed 120 | 120 120 160 160 160 160 170 163 163 163 166 163 166 165 162 162 189 130 132 132 124 124 124 124 124 124 124 178 219 219 219 160 160 160 160 163 163 160 156 156 156 156 150 Average Speed 177 | 120 151 160 163 221 177 170 163 163 164 166 165 166 165 164 168 189 133 132 132 135 124 124 124 124 124 129 189 1579 219 219 160 160 160 167 163 163 161 160 156 156 171 152 Slowest Speed 3550 | 120 160 160 240 240 240 170 163 163 166 166 166 166 166 166 410 189 189 132 132 180 124 124 124 124 124 178 226 3550 219 320 160 160 160 370 243 163 162 162 156 156 240 156 Overloaded Moves . | . . . . . . . . . . . . . . . . . . . . . . . . . . . . . . . . . . . . . . . . . . . Propulsion Burnouts . | . . . . . . . . . . . . . . . . . . . . . . . . . . . . . . . . . . . . . . . . . . . Robots Hopped . | . . . . . . . . . . . . . . . . . . . . . . . . . . . . . . . . . . . . . . . . . . . Cave-ins Triggered 1 | . . . . . . . . . . . . . . . . . . . . . . . . . . . . . . . . . 1 . . . . . . . . . Teleports 2 | . . . . . . . . . . . . . . . . . . . . . . . . . . . . . . . . . . . . . . . . . 1 1 Microwarps 99 | . . . . . . . . . . . . . . . . . . . . . . . . . . . . . . . . . . . 22 2 21 13 12 2 . 27 Exploration Rate (%) 55 | 2 96 98 88 80 65 35 1 54 23 31 37 67 69 88 78 83 20 87 68 78 72 16 35 15 35 91 74 92 47 55 3 63 18 96 45 14 27 71 58 18 94 95 Regions Visited 42 Branch Regions 21 Pre-discovered Areas 10 | . 2 . 2 . . 2 . . . . . . . 2 . 1 . 1 . . . . . . . . . . . . . . . . . . . . . . . . Known Exits Taken 14 | . . . 1 1 . . 1 . 1 . 1 . . . . . 1 . . . . 1 . 1 . . . . 1 . 1 . 1 . 1 . . 1 . 1 . . Unknown Exits Taken 19 | 1 1 1 . . . 1 . . . . . 1 1 1 1 1 . 1 1 1 1 . . . . 1 1 1 . . . . . 1 . . 1 . . . 1 . Scrap Searched 22 | . . 1 . . . . . . . . . 3 2 4 . 2 . 4 3 . 3 . . . . . . . . . . . . . . . . . . . . . Spaces Dug 555 | . . . 20 . 11 . . 34 3 . 32 4 23 3 . 7 10 . 1 61 5 8 . 8 . . 30 . 8 . . 23 16 3 10 . 27 12 . 22 64 110 Terrain Destroyed 2734 | . . . 20 31 30 . . 39 38 11 171 23 33 4 64 13 70 . 9 86 33 47 10 14 6 18 79 9 318 12 . 51 54 21 27 . 115 40 11 45 258 924 Melee 12 | . . . . . . . . . . . . . . . . . . . . . . . . . . . . . . . . . . . . . . . . . 12 . Projectile 947 | . . . . . 30 . . 10 11 11 54 23 33 4 2 13 35 . 9 86 33 47 10 14 6 18 10 9 27 12 . 16 54 21 27 . 115 39 11 34 67 56 AOE 1745 | . . . 20 31 . . . 29 27 . 117 . . . 62 . 35 . . . . . . . . . 69 . 291 . . 35 . . . . . . . . 169 860 Terrain Rammed . | . . . . . . . . . . . . . . . . . . . . . . . . . . . . . . . . . . . . . . . . . . . Walls Destroyed . | . . . . . . . . . . . . . . . . . . . . . . . . . . . . . . . . . . . . . . . . . . . Machines Disabled . | . . . . . . . . . . . . . . . . . . . . . . . . . . . . . . . . . . . . . . . . . . . Actions | -11 -10 -10 -9 -9 -9 -9 -7 -7 -7 -7 -6 -6 -6 -6 -6 -5 -5 -5 -5 -5 -4 -4 -4 -4 -4 -4 -4 -4 -4 -4 -3 -3 -3 -3 -3 -3 -2 -2 -2 -1 -1 -1 --------- Run | Scr Mat Min Mat Sto Gar Rec Fac Gar Fac Gar Fac Low Low Zio Dee Pro Fac Upp Upp War Pro Fac Gar Fac Gar Ext Cet Arc Hub Gar Res Gar Res Qua Sec Gar Res Tes Gar Acc Com Ac0 Total 48968 | . 809 1041 1895 638 872 292 19 773 685 317 1305 1065 1189 1771 2203 843 742 582 372 1178 2070 742 224 332 281 1286 425 941 366 283 290 508 941 6609 624 70 755 629 413 967 7904 3717 Wait 11174 | . 24 471 548 44 23 21 3 37 34 43 145 488 147 21 575 276 71 6 8 336 1284 163 31 24 70 177 105 549 31 33 222 67 348 3154 60 . 13 54 53 202 1116 97 Move 32624 | . 669 557 1139 475 692 134 12 638 585 235 905 520 990 1688 1330 544 554 572 347 645 684 484 160 285 177 884 238 354 279 204 52 383 454 3098 415 69 590 426 301 600 6123 3133 Hop . | . . . . . . . . . . . . . . . . . . . . . . . . . . . . . . . . . . . . . . . . . . . Pick Up 444 | . 16 1 11 8 4 2 . 7 7 1 14 3 1 10 27 2 11 1 2 6 13 6 . 2 . 9 9 1 3 1 . 3 10 97 17 . 10 14 1 7 75 32 Fast Attach 256 | . 5 2 13 7 4 . . . 5 . 5 4 3 15 10 . 7 . . 7 1 1 . . . 2 8 4 . 1 . . 10 21 12 . 16 11 11 4 28 39 Attach 188 | . 3 . 9 1 4 2 3 4 3 . 10 . 1 2 16 . 1 . . 2 2 1 . . . 1 2 . . 1 3 . 3 11 10 . 10 4 1 6 38 34 Detach 230 | . 2 . 2 . 3 . . 4 1 . 3 . 1 7 8 . 3 . . 7 11 1 1 . 1 3 6 7 . 1 9 1 15 28 3 . 9 4 2 1 50 36 Swap 315 | . 9 . 25 17 10 . 1 5 2 1 20 6 2 2 7 . 11 2 2 1 8 13 1 4 1 1 3 . 6 2 3 8 17 24 8 1 11 9 2 12 12 46 Drop 643 | . 19 3 33 24 12 2 . 5 10 1 12 6 1 19 41 2 19 1 3 10 14 6 . 2 . 2 18 6 3 2 1 . 16 114 21 . 22 25 11 7 90 60 Fire 2319 | . 55 5 113 55 120 2 . 40 35 32 175 36 41 7 53 19 65 . 10 130 39 62 17 14 21 44 36 20 43 21 . 37 64 60 78 . 72 81 31 126 247 213 Melee 201 | . . . . . . . . . . . . . . . 123 . . . . . 14 . 1 . 1 . . . . . . 1 2 2 . . . . . . 30 27 Ram . | . . . . . . . . . . . . . . . . . . . . . . . . . . . . . . . . . . . . . . . . . . . Kick 14 | . 3 . . . . . . . . . . . . . . . . . . . . 5 . 1 . 4 . . 1 . . . . . . . . . . . . . Crush 66 | . 4 2 2 5 . 2 . . 3 2 16 1 2 . 8 . . . . . . . . . . . . . . . . . 1 . . . . 1 . 2 15 . Escape Stasis 42 | . . . . 2 . . . . . . . . . . . . . . . . . . 5 . 10 5 . . . 17 . . 1 . . . . . . . 2 . Rewire 452 | . . . . . . 127 . 33 . 2 . 1 . . 5 . . . . 34 . . 8 . . 154 . . . . . 8 . . . . 2 . . . 78 . Trap . | . . . . . . . . . . . . . . . . . . . . . . . . . . . . . . . . . . . . . . . . . . . Miscellaneous . | . . . . . . . . . . . . . . . . . . . . . . . . . . . . . . . . . . . . . . . . . . . Route ------- -11/Scrapyard -10/Materials (discovered 4 exits: *Mat x3 / *Min) -10/Mines (discovered 2 exits: *Mat x2) -9/Materials (discovered 7 exits: *Mat x3 / *Min x2 / *Sto x2) -9/Storage -9/Garrison (discovered 3 exits: *Rec x3) -9/Recycling -7/Factory -7/Garrison (discovered 4 exits: *Fac x4) -7/Factory (discovered 3 exits: *Fac x2 / Gar) -7/Garrison -6/Factory (discovered 4 exits: *Fac x2 / *Low x2) -6/Lower Caves -6/Lower Caves (discovered 2 exits: *Fac / [*Zio]) -6/Zion (discovered 2 exits: [*Dee] / [*Pro]) -6/Deep Caves -5/Proximity Caves -5/Factory (discovered 2 exits: *Upp x2) -5/Upper Caves -5/Upper Caves (discovered 2 exits: *Fac / [*War]) -5/Warlord -4/Proximity Caves -4/Factory (discovered 2 exits: *Ext / Gar) -4/Garrison -4/Factory -4/Garrison -4/Extension (discovered 2 exits: *Res / *Cet) -4/Cetus (discovered 2 exits: *Res / [*Arc]) -4/Archives (discovered 3 exits: *Res / *Hub x2) -4/Hub_04(d) (discovered 3 exits: *Res x2 / Gar) -4/Garrison (discovered 2 exits: *Res x2) -3/Research (discovered 2 exits: Qua / Gar) -3/Garrison (discovered 2 exits: *Res x2) -3/Research (discovered 5 exits: Res x3 / *Qua x2) -3/Quarantine (discovered 2 exits: *Res / *Sec) -3/Section 7 -3/Garrison (discovered 3 exits: *Res x3) -2/Research (discovered 2 exits: *Acc / *Tes) -2/Testing (discovered 2 exits: *Acc / Gar) -2/Garrison (discovered 3 exits: *Acc x3) -1/Access -1/Command (discovered 3 exits: [*Sur x2] / *Ac0) -1/Access_0 To Fleet Rendezvous History --------- Turn | Location | Event 1 | -11/Scrapyard | Discovered new exit (range 0) 1 | -11/Scrapyard | Entered Materials 302 | -10/Materials | Build established: Mutant 323 | -10/Materials | Discovered new exit (range 16) 609 | -10/Materials | Discovered new exit (range 15) 639 | -10/Materials | Central database locked down 758 | -10/Materials | Destroyed 7 combat bots 843 | -10/Materials | Discovered new exit (range 14) 1128 | -10/Materials | Discovered new exit (range 15) 1263 | -10/Materials | Entered Mines 1275 | -10/Mines | Met a Derelict bent on vengeance 1370 | -10/Mines | Found the Drone Emporium 1376 | -10/Mines | Found Prototype Device 1376 | -10/Mines | Identified Splice Drone Bay 1404 | -10/Mines | Build established: Scavenger-Mutant 1405 | -10/Mines | Discovered new exit (range 8) 1509 | -10/Mines | Learned Materials terminal intel 1536 | -10/Mines | Core integrity fell below 50% 1572 | -10/Mines | Discovered new exit (range 11) 1720 | -10/Mines | Assembled infested the area 2649 | -10/Mines | Entered Materials 2649 | -9/Materials | Accompanied by 2 allies 2649 | -9/Materials | Evolved 2 slots: Utility x1, Weapon x1 2650 | -9/Materials | Loaded intel: 12 terminal locations 2654 | -9/Materials | Led the pair of lost Derelicts to an unsafe place 2945 | -9/Materials | Discovered new exit (range 11) 3041 | -9/Materials | Discovered new exit (range 16) 3116 | -9/Materials | Build established: Tank 3119 | -9/Materials | Discovered new exit (range 16) 3180 | -9/Materials | Discovered new exit (range 8) 3497 | -9/Materials | Build established: Scavenger-Tank 3930 | -9/Materials | Discovered new exit (range 7) 3987 | -9/Materials | Identified exit to Materials 4327 | -9/Materials | Identified exit to Mines 4327 | -9/Materials | Identified exit to Storage 4481 | -9/Materials | Build established: Tank 4488 | -9/Materials | Discovered exit to Materials (range 11) 5047 | -9/Materials | Build established: Scavenger-Tank 5481 | -9/Materials | Entered Storage 5587 | -9/Storage | Garrison activated, responded to threat 5901 | -9/Storage | Build established: Tank 6277 | -9/Storage | Met a pair of Derelict thieves 6298 | -9/Storage | Build established: Scavenger-Tank 6809 | -9/Storage | Identified exit to Garrison 6809 | -9/Storage | Entered Garrison 6809 | -9/Garrison | Accompanied by 2 allies 6844 | -9/Garrison | Triggered checkpoint 6880 | -9/Garrison | Garrison Relay disabled 6988 | -9/Garrison | Heavy support dispatched to Recycling 7066 | -9/Garrison | Core integrity fell below 50% 7500 | -9/Garrison | Triggered checkpoint 7582 | -9/Garrison | Triggered checkpoint 7647 | -9/Garrison | Build established: Mutant 7652 | -9/Garrison | Discovered new exit (range 9) 7800 | -9/Garrison | Triggered checkpoint 7901 | -9/Garrison | Attempted to access garrison exit controls, blocked by remote lockdown 8003 | -9/Garrison | Discovered new exit (range 14) 8037 | -9/Garrison | Attempted to access garrison exit controls, blocked by remote lockdown 8203 | -9/Garrison | Discovered new exit (range 14) 8222 | -9/Garrison | Core integrity fell below 20% 8288 | -9/Garrison | Triggered checkpoint 8391 | -9/Garrison | Entered Recycling 8480 | -9/Recycling | Spotter reported a threat 8543 | -9/Recycling | Spotter reported a threat 8577 | -9/Recycling | Spotter reported a threat 8580 | -9/Recycling | Spotter reported a threat 8610 | -9/Recycling | Spotter reported a threat 8632 | -9/Recycling | Spotter reported a threat 8650 | -9/Recycling | Spotter reported a threat 8663 | -9/Recycling | Spotter reported a threat 8685 | -9/Recycling | Spotter reported a threat 8689 | -9/Recycling | Spotter reported a threat 8717 | -9/Recycling | Spotter reported a threat 8726 | -9/Recycling | Spotter reported a threat 8726 | -9/Recycling | Spotter reported a threat 8732 | -9/Recycling | Discovered new exit (range 9) 8738 | -9/Recycling | Spotter reported a threat 8770 | -9/Recycling | Spotter reported a threat 8773 | -9/Recycling | Spotter reported a threat 8782 | -9/Recycling | Entered Factory 8782 | -7/Factory | Accompanied by 8 allies 8782 | -7/Factory | Evolved 4 slots: Propulsion x2, Utility x2 8807 | -7/Factory | Identified exit to Garrison 8810 | -7/Factory | Entered Garrison 8810 | -7/Garrison | Accompanied by 8 allies 8840 | -7/Garrison | Triggered checkpoint 8924 | -7/Garrison | Triggered checkpoint 9006 | -7/Garrison | Destroyed 10 combat bots 9049 | -7/Garrison | Discovered new exit (range 12) 9089 | -7/Garrison | Triggered checkpoint 9296 | -7/Garrison | Triggered checkpoint 9321 | -7/Garrison | Found embedded Infiltrators 9492 | -7/Garrison | Triggered checkpoint 9502 | -7/Garrison | Triggered checkpoint 9528 | -7/Garrison | Discovered new exit (range 28) 9528 | -7/Garrison | Discovered new exit (range 64) 9528 | -7/Garrison | Discovered new exit (range 23) 9528 | -7/Garrison | Discovered new exit (range 46) 9757 | -7/Garrison | Attempted to access garrison exit controls, blocked by remote lockdown 9884 | -7/Garrison | Triggered checkpoint 10040 | -7/Garrison | Entered Factory 10040 | -7/Factory | Accompanied by 6 allies 10348 | -7/Factory | Build established: Commander-Mutant 10440 | -7/Factory | First assault squad dispatched 10599 | -7/Factory | Discovered new exit (range 18) 10718 | -7/Factory | Build established: Mutant 10885 | -7/Factory | Discovered new exit (range 20) 11075 | -7/Factory | Destroyed 8 combat bots 11154 | -7/Factory | Identified exit to Garrison 11154 | -7/Factory | Entered Garrison 11158 | -7/Garrison | Triggered checkpoint 11232 | -7/Garrison | Triggered checkpoint 11393 | -7/Garrison | Discovered new exit (range 14) 11558 | -7/Garrison | Triggered checkpoint 11676 | -7/Garrison | Entered Factory 11676 | -6/Factory | Evolved 2 slots: Utility x2 12415 | -6/Factory | Identified exit to Lower Caves 12421 | -6/Factory | Discovered new exit (range 15) 12502 | -6/Factory | Repaired Hvy. Linear Accelerator 12788 | -6/Factory | Garrison activated, responded to threat 13189 | -6/Factory | Discovered new exit (range 5) 13471 | -6/Factory | First assault squad dispatched 13568 | -6/Factory | Destroyed 7 combat bots 13814 | -6/Factory | Entered Lower Caves 13821 | -6/Lower Caves | Met a Warlord Commander 13826 | -6/Lower Caves | Found Encrypted Comm Array 15097 | -6/Lower Caves | Discovered new exit (range 8) 15276 | -6/Lower Caves | Entered another Lower Caves area 15512 | -6/Lower Caves | Discovered new exit (range 3) 15636 | -6/Lower Caves | Learned Factory emergency access door positions 15857 | -6/Lower Caves | Encountered a Warlord checkpoint 15890 | -6/Lower Caves | Discovered new exit (range 13) 16025 | -6/Lower Caves | Learned Factory stockpile data 16207 | -6/Lower Caves | Found Alien Artifact 16207 | -6/Lower Caves | Identified Core Expander 16207 | -6/Lower Caves | Installed Core Expander, added new Propulsion slot 17165 | -6/Lower Caves | Entered Zion 17286 | -6/Zion | Discovered new exit (range 21) 17350 | -6/Zion | Received a hallucinogenic algorithm 17466 | -6/Zion | Found CR-A16's Pointy Stick 17682 | -6/Zion | Found Prototype Device 17682 | -6/Zion | Identified Phasing AFG 17803 | -6/Zion | Learned Factory trap positions 18006 | -6/Zion | Gained Derelict followers 18636 | -6/Zion | Learned Factory emergency access door positions 18803 | -6/Zion | Found Prototype Processor 18803 | -6/Zion | Identified Exp. Terrain Scan Processor 18807 | -6/Zion | Found Prototype Processor 18807 | -6/Zion | Identified Exp. Target Analyzer 18814 | -6/Zion | Found Prototype Processor 18814 | -6/Zion | Identified Exp. Melee Analysis Suite 18819 | -6/Zion | Found Prototype Processor 18819 | -6/Zion | Identified Spectral Analyzer 19373 | -6/Zion | Discovered new exit (range 4) 19947 | -6/Zion | Build established: Scavenger-Mutant 20003 | -6/Zion | Saw the warning signs outside the Deep Caves entrance 20032 | -6/Zion | Entered Deep Caves 20032 | -6/Deep Caves | Accompanied by 5 allies 20121 | -6/Deep Caves | Attacked by Z-Imprinter 20145 | -6/Deep Caves | Destroyed Z-Imprinter 20253 | -6/Deep Caves | Build established: Derelict-Mutant 20325 | -6/Deep Caves | Z-Facility disabled 20492 | -6/Deep Caves | Found Prototype Protection 20492 | -6/Deep Caves | Identified Zio. Weapon Casing 20495 | -6/Deep Caves | Found Prototype Protection 20495 | -6/Deep Caves | Identified Zio. Heavy Carapace 20716 | -6/Deep Caves | Discovered new exit (range 6) 20904 | -6/Deep Caves | Build established: Scavenger-Mutant 21047 | -6/Deep Caves | Spotted as-27038 21097 | -6/Deep Caves | Destroyed as-27038 21456 | -6/Deep Caves | Build established: Mutant 21586 | -6/Deep Caves | Triggered Deep Caves wall 21586 | -6/Deep Caves | Spotted AS-50371 21587 | -6/Deep Caves | Exposed GOLEM chamber 21607 | -6/Deep Caves | Spotted AS-05369 21613 | -6/Deep Caves | Destroyed AS-05369 21613 | -6/Deep Caves | Destroyed AS-50371 21619 | -6/Deep Caves | Spotted as-29772 21634 | -6/Deep Caves | Destroyed 39 combat bots 21702 | -6/Deep Caves | Destroyed 11 combat bots 21939 | -6/Deep Caves | Destroyed as-29772 21957 | -6/Deep Caves | Lost 3 parts (3u) 21975 | -6/Deep Caves | Build established: Derelict-Mutant 21991 | -6/Deep Caves | Found GOLEM Unit 22055 | -6/Deep Caves | Found GOLEM Unit 22179 | -6/Deep Caves | Found GOLEM Unit 22281 | -6/Deep Caves | Found GOLEM Unit 22741 | -6/Deep Caves | Build established: Golem 23327 | -6/Deep Caves | Found Zio. Weapon Casing 23507 | -6/Deep Caves | Entered Proximity Caves 24789 | -5/Proximity Caves | Build established: Gunner 24816 | -5/Proximity Caves | Discovered new exit (range 14) 24871 | -5/Proximity Caves | Entered Factory 24871 | -5/Factory | Evolved 2 slots: Power x1, Utility x1 24872 | -5/Factory | Loaded intel: 98 trap records 24929 | -5/Factory | Joined by Warlord Muscle squad 25055 | -5/Factory | Garrison activated, responded to threat 25171 | -5/Factory | First assault squad dispatched 25309 | -5/Factory | Joined by Warlord Ranger squad 25383 | -5/Factory | Destroyed 8 combat bots 25543 | -5/Factory | Joined by Warlord Infantry squad 25569 | -5/Factory | Discovered new exit (range 20) 25577 | -5/Factory | Build established: Golem 25621 | -5/Factory | Joined by Warlord Pyro squad 25765 | -5/Factory | Identified exit to Upper Caves 25912 | -5/Factory | Entered Upper Caves 26115 | -5/Upper Caves | Encountered a Warlord checkpoint 26244 | -5/Upper Caves | Discovered new exit (range 14) 26266 | -5/Upper Caves | Learned location of Armory (-4) 26678 | -5/Upper Caves | Entered another Upper Caves area 26680 | -5/Upper Caves | Attracted the attention of an 0b10 checkpoint 26689 | -5/Upper Caves | Discovered new exit (range 11) 27122 | -5/Upper Caves | Discovered new exit (range 14) 27166 | -5/Upper Caves | Learned Factory emergency access door positions 27175 | -5/Upper Caves | Entered Warlord 27202 | -5/Warlord | Discovered new exit (range 20) 27221 | -5/Warlord | System corruption cleaned by Quarantine Array 27642 | -5/Warlord | Build established: Commander-Golem 27803 | -5/Warlord | Found Prototype Reactor 27803 | -5/Warlord | Identified Vortex Chain Reactor 27812 | -5/Warlord | Found Prototype Device 27812 | -5/Warlord | Identified Exp. Cloaking Device 27820 | -5/Warlord | Found Prototype Device 27820 | -5/Warlord | Identified System Purifier 27841 | -5/Warlord | Found Prototype Hackware 27863 | -5/Warlord | Met Warlord 27888 | -5/Warlord | Warlord's base attacked by MAIN.C 28201 | -5/Warlord | Spotted B-86 Titan 28207 | -5/Warlord | Spotted B-75 Beast 28221 | -5/Warlord | Destroyed B-86 Titan 28227 | -5/Warlord | Build established: Commander-Tank 28238 | -5/Warlord | Warlord forces counterattacked 28290 | -5/Warlord | P-70 Sage assimilated allied TC-LO8(g) 28313 | -5/Warlord | P-70 Sage assimilated allied XU-2C1(g) 28320 | -5/Warlord | Spotted Executioner 28331 | -5/Warlord | Allies destroyed Executioner 28389 | -5/Warlord | Spotted Executioner 28491 | -5/Warlord | Spotted Striker 28508 | -5/Warlord | Destroyed Striker 28532 | -5/Warlord | Destroyed 7 combat bots 28563 | -5/Warlord | Warlord base infiltrated, sounded retreat 28688 | -5/Warlord | Spotted Executioner 28688 | -5/Warlord | Spotted Striker 28688 | -5/Warlord | Spotted Striker 28694 | -5/Warlord | Destroyed Executioner 28792 | -5/Warlord | Spotted B-75 Beast 28792 | -5/Warlord | Entered Proximity Caves 28792 | -4/Proximity Caves | Accompanied by 5 allies 28849 | -4/Proximity Caves | Attracted the attention of an 0b10 checkpoint 28923 | -4/Proximity Caves | Learned 4 Research zone layouts 29030 | -4/Proximity Caves | Spotted B-86 Titan 29112 | -4/Proximity Caves | Revealed the true nature of CR-A16's Pointy Stick 29117 | -4/Proximity Caves | Destroyed B-86 Titan 29374 | -4/Proximity Caves | Attracted the attention of an 0b10 outpost 29693 | -4/Proximity Caves | Build established: Golem 29711 | -4/Proximity Caves | Discovered new exit (range 11) 31127 | -4/Proximity Caves | Entered Factory 31127 | -4/Factory | Accompanied by 1 ally 31127 | -4/Factory | Evolved 2 slots: Power x1, Utility x1 31188 | -4/Factory | Garrison activated, responded to threat 31429 | -4/Factory | Build established: Generator-Golem 31564 | -4/Factory | Spotted B-86 Titan 31687 | -4/Factory | Garrison activated, responded to threat 31856 | -4/Factory | Fabricated Huge Storage Unit (x1) 31966 | -4/Factory | Discovered new exit (range 13) 32058 | -4/Factory | Identified exit to Garrison 32109 | -4/Factory | Entered Garrison 32148 | -4/Garrison | Spotted B-75 Beast 32178 | -4/Garrison | Destroyed B-75 Beast 32190 | -4/Garrison | Rewired B-75 Beast 32277 | -4/Garrison | Triggered checkpoint 32399 | -4/Garrison | Discovered new exit (range 8) 32407 | -4/Garrison | Entered Factory 32444 | -4/Factory | Spotted B-86 Titan 32569 | -4/Factory | Fabricated Hyb. Antimatter Reactor? 32622 | -4/Factory | Fabricated Adv. Heavy Siege Treads? 32687 | -4/Factory | Identified Ghost Barrier 32827 | -4/Factory | Identified exit to Garrison 32827 | -4/Factory | Entered Garrison 32880 | -4/Garrison | Triggered checkpoint 32918 | -4/Garrison | Spotted B-86 Titan 32965 | -4/Garrison | Destroyed B-86 Titan 33010 | -4/Garrison | Triggered checkpoint 33118 | -4/Garrison | Triggered checkpoint 33164 | -4/Garrison | Discovered new exit (range 19) 33187 | -4/Garrison | Entered Extension 33610 | -4/Extension | Spotted B-86 Titan 33759 | -4/Extension | Destroyed B-86 Titan 33939 | -4/Extension | Rescued A7 33973 | -4/Extension | Build established: Generator-Tank 34251 | -4/Extension | Spotted B-86 Titan 34280 | -4/Extension | Allies destroyed B-86 Titan 34687 | -4/Extension | First assault squad dispatched 34703 | -4/Extension | Build established: Commander-Tank 34798 | -4/Extension | Discovered new exit (range 10) 34800 | -4/Extension | Discovered new exit (range 6) 34829 | -4/Extension | Entered Cetus 34829 | -4/Cetus | Accompanied by 1 ally (A7) 34834 | -4/Cetus | Acquired a Cetus Manufacturing Module code from A7 34847 | -4/Cetus | Spotted Cetus Guard 34847 | -4/Cetus | Spotted Cetus Guard 34847 | -4/Cetus | Destroyed Cetus Guard 34849 | -4/Cetus | Spotted Cetus Guard 34853 | -4/Cetus | Spotted Cetus Guard 34854 | -4/Cetus | Allies destroyed Cetus Guard 34856 | -4/Cetus | Allies destroyed Cetus Guard 34868 | -4/Cetus | Allies destroyed Cetus Guard 34994 | -4/Cetus | Started Cetus Manufacturing Module 35014 | -4/Cetus | Escorted A7 to Cetus Mainframe 35019 | -4/Cetus | Manufactured an Enhanced Grunt 35022 | -4/Cetus | Discovered new exit (range 23) 35044 | -4/Cetus | Manufactured an Enhanced Grunt 35047 | -4/Cetus | Cetus Manufacturing Module disabled 35167 | -4/Cetus | Spotted Cetus Guard 35167 | -4/Cetus | Spotted Cetus Guard 35171 | -4/Cetus | Spotted Cetus Guard 35178 | -4/Cetus | Allies destroyed Cetus Guard 35178 | -4/Cetus | Spotted Cetus Guard 35180 | -4/Cetus | Destroyed Cetus Guard 35187 | -4/Cetus | Destroyed Cetus Guard 35193 | -4/Cetus | Destroyed Cetus Guard 35198 | -4/Cetus | Discovered new exit (range 23) 35223 | -4/Cetus | Met Revision 17 35326 | -4/Cetus | Extracted ID and sensor layout for unrecognized location from A7's data core 35335 | -4/Cetus | Build established: Generator-Golem 35390 | -4/Cetus | Found Prototype Device 35390 | -4/Cetus | Identified Exp. Thermal Shield 35530 | -4/Cetus | Entered Archives 35652 | -4/Archives | Discovered new exit (range 23) 35819 | -4/Archives | Discovered new exit (range 24) 35898 | -4/Archives | Discovered new exit (range 14) 41763 | -4/Archives | Entered Hub_04(d) 42102 | -4/Hub_04(d) | Discovered new exit (range 20) 42106 | -4/Hub_04(d) | Discovered new exit (range 16) 42417 | -4/Hub_04(d) | Network Hub disabled 42502 | -4/Hub_04(d) | Network Hub disabled 42502 | -4/Hub_04(d) | Network Hub disabled 42538 | -4/Hub_04(d) | Spotted Lightning 42538 | -4/Hub_04(d) | Spotted Lightning 42538 | -4/Hub_04(d) | Spotted Lightning 42538 | -4/Hub_04(d) | Spotted Lightning 42538 | -4/Hub_04(d) | Spotted Lightning 42538 | -4/Hub_04(d) | Spotted Lightning 42546 | -4/Hub_04(d) | Identified exit to Garrison 42546 | -4/Hub_04(d) | Entered Garrison 42663 | -4/Garrison | Triggered checkpoint 42856 | -4/Garrison | Discovered new exit (range 9) 42878 | -4/Garrison | System corruption reached 10% 42891 | -4/Garrison | Spotted B-75 Beast 42907 | -4/Garrison | Attempted to access garrison exit controls, blocked by remote lockdown 43008 | -4/Garrison | Triggered checkpoint 43096 | -4/Garrison | Discovered new exit (range 9) 43114 | -4/Garrison | Entered Research 43114 | -3/Research | Evolved 2 slots: Propulsion x1, Utility x1 43115 | -3/Research | Identified exit to Quarantine 43207 | -3/Research | Identified exit to Garrison 43432 | -3/Research | Entered Garrison 43619 | -3/Garrison | Spotted B-86 Titan 43650 | -3/Garrison | Triggered checkpoint 43680 | -3/Garrison | Destroyed B-86 Titan 43698 | -3/Garrison | Found Hvy. Reflective Plating 43819 | -3/Garrison | Learned Research security intel 43855 | -3/Garrison | Phase Generator disabled 43856 | -3/Garrison | Discovered new exit (range 8) 43857 | -3/Garrison | Met a derelict Sapper fleeing the area 43916 | -3/Garrison | Triggered checkpoint 44012 | -3/Garrison | Rewired Executioner 44015 | -3/Garrison | Rewired Executioner 44035 | -3/Garrison | Triggered checkpoint 44056 | -3/Garrison | Garrison Relay disabled 44088 | -3/Garrison | Attempted to access garrison exit controls, blocked by remote lockdown 44158 | -3/Garrison | Triggered checkpoint 44212 | -3/Garrison | Discovered new exit (range 20) 44242 | -3/Garrison | Entered Research 44242 | -3/Research | Accompanied by 2 allies 44298 | -3/Research | Found Antimissile System 44372 | -3/Research | Identified exit to Research 44556 | -3/Research | Destroyed Executioner 44574 | -3/Research | Found Prototype Processor 44574 | -3/Research | Identified Exp. Core Analyzer 44742 | -3/Research | First assault squad dispatched 45101 | -3/Research | Spotted B-90 Cyclops 45129 | -3/Research | Crushed by falling debris 45143 | -3/Research | Destroyed B-90 Cyclops 45575 | -3/Research | Entered Quarantine 45639 | -3/Quarantine | Found Alien Artifact 45639 | -3/Quarantine | Identified Core Reset Matrix 45639 | -3/Quarantine | Used Core Reset Matrix 45643 | -3/Quarantine | Detected hypermatrix surge 45643 | -3/Quarantine | Sensed 8 artifacts in vicinity 45680 | -3/Quarantine | Found Core Stripper 45825 | -3/Quarantine | First assault squad dispatched 45845 | -3/Quarantine | Cryocooling Duct disabled 45851 | -3/Quarantine | Cryocooling Duct disabled 45860 | -3/Quarantine | Ambient heat levels rising (+20) 45860 | -3/Quarantine | Non-combat units ordered to evacuate 45866 | -3/Quarantine | Ambient heat levels rising (+20) 45866 | -3/Quarantine | Combat units ordered to evacuate 45966 | -3/Quarantine | Quarantine Guard activated 46039 | -3/Quarantine | Spotted Quarantine Guard 46046 | -3/Quarantine | Destroyed Quarantine Guard 46281 | -3/Quarantine | Build established: Generator-Tank 46319 | -3/Quarantine | Spotted Quarantine Guard 46323 | -3/Quarantine | Destroyed Quarantine Guard 47041 | -3/Quarantine | Spotted Quarantine Guard 47049 | -3/Quarantine | Destroyed Quarantine Guard 47394 | -3/Quarantine | Spotted Quarantine Guard 47403 | -3/Quarantine | Destroyed Quarantine Guard 47510 | -3/Quarantine | Spotted Quarantine Guard 47515 | -3/Quarantine | Destroyed Quarantine Guard 47875 | -3/Quarantine | Build established: Generator-Mutant 48378 | -3/Quarantine | Spotted Quarantine Guard 48396 | -3/Quarantine | Destroyed Quarantine Guard 48577 | -3/Quarantine | Spotted Quarantine Guard 48606 | -3/Quarantine | Destroyed Quarantine Guard 48670 | -3/Quarantine | Spotted Quarantine Guard 48701 | -3/Quarantine | Destroyed Quarantine Guard 48715 | -3/Quarantine | Build established: Generator-Tank 48927 | -3/Quarantine | Discovered exit to Research (range 15) 48927 | -3/Quarantine | Spotted Quarantine Guard 48972 | -3/Quarantine | Destroyed Quarantine Guard 49255 | -3/Quarantine | Build established: Generator-Mutant 49389 | -3/Quarantine | Spotted Quarantine Guard 49404 | -3/Quarantine | Destroyed Quarantine Guard 49689 | -3/Quarantine | Build established: Generator-Tank 49739 | -3/Quarantine | Found Antimissile System 49810 | -3/Quarantine | Spotted Quarantine Guard 49842 | -3/Quarantine | Destroyed Quarantine Guard 50228 | -3/Quarantine | Found Prototype Processor 50238 | -3/Quarantine | Identified Exp. Signal Interpreter 50571 | -3/Quarantine | Found Subatomic Replicator 50861 | -3/Quarantine | Build established: Generator-Mutant 51607 | -3/Quarantine | Spotted Fortress 51617 | -3/Quarantine | Destroyed Fortress 51686 | -3/Quarantine | Found Prototype Reactor 51686 | -3/Quarantine | Identified Vortex Chain Reactor 51696 | -3/Quarantine | Found Prototype Device 51706 | -3/Quarantine | Identified Thermal Barrier 51732 | -3/Quarantine | Found Prototype Device 51734 | -3/Quarantine | Identified Exp. Force Field 51741 | -3/Quarantine | Found Prototype Protection 51754 | -3/Quarantine | Identified Centrium Heavy Armor Plating 51766 | -3/Quarantine | Found Prototype Device 51773 | -3/Quarantine | Identified Exp. EM Disruption Field 51786 | -3/Quarantine | Found Unknown Protection 51806 | -3/Quarantine | Identified Hvy. Insulated Plating 51938 | -3/Quarantine | Build established: Scavenger-Mutant 52633 | -3/Quarantine | Repaired Centrium Heavy Treads 52688 | -3/Quarantine | Build established: Generator-Tank 53395 | -3/Quarantine | Found Unknown Launcher 53412 | -3/Quarantine | Identified Fusion Bomb Launcher 53496 | -3/Quarantine | Build established: Generator-Mutant 54311 | -3/Quarantine | Discovered new exit (range 6) 54311 | -3/Quarantine | Spotted Quarantine Guard 54329 | -3/Quarantine | Destroyed Quarantine Guard 54357 | -3/Quarantine | Entered Section 7 54358 | -3/Section 7 | Sensed 22 artifacts in vicinity 54418 | -3/Section 7 | Found Integrated Mediator 54418 | -3/Section 7 | Installed Integrated Mediator, increased core attachment efficiency. 54582 | -3/Section 7 | Found Microwarp Drive 54870 | -3/Section 7 | Spotted Alpha 7 54871 | -3/Section 7 | Spotted Alpha 7 54876 | -3/Section 7 | Spotted B-99 Colossus 54897 | -3/Section 7 | Found Integrated Reactor 54897 | -3/Section 7 | Installed Integrated Reactor, increased core energy generation (+10) 54900 | -3/Section 7 | Found Integrated Reactor 54900 | -3/Section 7 | Installed Integrated Reactor, increased core energy generation (+10) 54903 | -3/Section 7 | Found Integrated Reactor 54903 | -3/Section 7 | Installed Integrated Reactor, increased core energy generation (+10) 54947 | -3/Section 7 | Found LRC Energy Well 54947 | -3/Section 7 | Installed LRC Energy Well, increased energy storage capacity (+250) 54956 | -3/Section 7 | Found LRC Boosters 54956 | -3/Section 7 | Installed LRC Boosters, increased mass support (+10) 54997 | -3/Section 7 | Destroyed Alpha 7 55023 | -3/Section 7 | Destroyed Alpha 7 55039 | -3/Section 7 | Found Prototype Processor 55106 | -3/Section 7 | Found Integrated Dissipator 55120 | -3/Section 7 | Used Subatomic Replicator to create Supercharged Integrated Dissipator 55122 | -3/Section 7 | Installed Supercharged Integrated Dissipator, increased core heat dissipation (+40) 55193 | -3/Section 7 | Found Hpw. Transdimensional Reconstructor 55239 | -3/Section 7 | Identified Exp. Target Analyzer 55243 | -3/Section 7 | Found Transdimensional Reconstructor 55359 | -3/Section 7 | Identified exit to Garrison 55359 | -3/Section 7 | Entered Garrison 55385 | -3/Garrison | Discovered exit to Research (range 66) 55385 | -3/Garrison | Discovered exit to Research (range 102) 55385 | -3/Garrison | Discovered exit to Research (range 60) 55461 | -3/Garrison | Core integrity fell below 50% 55472 | -3/Garrison | Entered Research 55472 | -2/Research | Warlord forces began assault on 0b10 55472 | -2/Research | Evolved 2 slots: Propulsion x2 55490 | -2/Research | Spotted B-90 Cyclops 55493 | -2/Research | Discovered new exit (range 11) 55497 | -2/Research | Distinguished unit "Department No. 42" dispatched to help 55582 | -2/Research | Research machine network offline 55790 | -2/Research | Met up with Warlord 55990 | -2/Research | Borebot progress halted 56159 | -2/Research | Identified exit to Access 56176 | -2/Research | Spotted Striker 56176 | -2/Research | Spotted Striker 56181 | -2/Research | Destroyed Striker 56193 | -2/Research | Destroyed Striker 56214 | -2/Research | Borebot progress halted 56324 | -2/Research | Borebot progress halted 56356 | -2/Research | Spotted Striker 56383 | -2/Research | Destroyed Striker 56706 | -2/Research | Discovered new exit (range 3) 56711 | -2/Research | Entered Testing 56712 | -2/Testing | Sensed 1 artifact in vicinity 56819 | -2/Testing | Found Prototype Ballistic Gun 57003 | -2/Testing | First assault squad dispatched 57011 | -2/Testing | Found Prototype Hackware 57012 | -2/Testing | Identified Hyp. Multirail 57132 | -2/Testing | Found Prototype Energy Cannon 57132 | -2/Testing | Identified Cld. Nova Cannon 57355 | -2/Testing | Spotted PG-174XJ2P081 57382 | -2/Testing | Discovered exit to Access (range 8) 57455 | -2/Testing | Found Prototype Energy Cannon 57460 | -2/Testing | Found Prototype Energy Cannon 57514 | -2/Testing | Found Prototype Hackware 57583 | -2/Testing | Build established: Alien-Mutant 57665 | -2/Testing | Core integrity fell below 50% 57688 | -2/Testing | Identified exit to Garrison 57688 | -2/Testing | Entered Garrison 57951 | -2/Garrison | Discovered exit to Access (range 10) 57966 | -2/Garrison | Attempted to access garrison exit controls, blocked by remote lockdown 58061 | -2/Garrison | Triggered checkpoint 58061 | -2/Garrison | Triggered checkpoint 58089 | -2/Garrison | Spotted B-90 Cyclops 58130 | -2/Garrison | Triggered checkpoint 58208 | -2/Garrison | Discovered exit to Access (range 14) 58228 | -2/Garrison | Attempted to access garrison exit controls, blocked by remote lockdown 58313 | -2/Garrison | Discovered exit to Access (range 11) 58316 | -2/Garrison | Entered Access 58316 | -1/Access | Evolved 2 slots: Power x1, Utility x1 58317 | -1/Access | Sensed 1 artifact in vicinity 58483 | -1/Access | Identified Exp. System Shield 58566 | -1/Access | First assault squad dispatched 58907 | -1/Access | Build established: Generator-Mutant 58952 | -1/Access | Identified System Mapper 58954 | -1/Access | Identified exit to Command 59372 | -1/Access | Destroyed 7 combat bots 59452 | -1/Access | Spotted B-99 Colossus 59494 | -1/Access | Destroyed 7 combat bots 59756 | -1/Access | Entered Command 59844 | -1/Command | Repaired Centrium Heavy Armor Plating 60034 | -1/Command | First assault squad dispatched 60152 | -1/Command | Destroyed 8 combat bots 60163 | -1/Command | Spotted B-99 Colossus 60181 | -1/Command | Destroyed B-99 Colossus 60220 | -1/Command | Disengaged cave seal 60220 | -1/Command | Derelicts emerged from the dark tunnel 60221 | -1/Command | Welcomed Warlord to Command 60319 | -1/Command | Found Prototype Ballistic Gun 60804 | -1/Command | Disengaged cave seal 60804 | -1/Command | Derelicts emerged from the dark tunnel 60958 | -1/Command | Identified Multirail 60962 | -1/Command | Identified Imp. Potential Cannon 60991 | -1/Command | Warlord commented on Warlord statues 60992 | -1/Command | Spotted M Guard 60992 | -1/Command | Spotted M Guard 60994 | -1/Command | Spotted Combat Programmer 60995 | -1/Command | Spotted Combat Programmer 61002 | -1/Command | Combat Programmer assimilated allied N0-53I(L) 61002 | -1/Command | Spotted N0-53I(L) 61005 | -1/Command | System corruption reached 10% 61034 | -1/Command | Identified Potential Cannon 61035 | -1/Command | All MAIN.C guards destroyed 61432 | -1/Command | Met MAIN.C 61434 | -1/Command | Warlord shut down involuntarily 61444 | -1/Command | 0b10 Conduit disabled 61461 | -1/Command | Destroyed MAIN.C Shell 61464 | -1/Command | MAIN.C activated Command garrisons 61556 | -1/Command | Discovered new exit (range 42) 61556 | -1/Command | Discovered new exit (range 109) 61556 | -1/Command | Extracted map data and part IDs from MAIN.C's data core 61565 | -1/Command | Lost 5 parts (3p2u) 61715 | -1/Command | Found Quantum Capacitor 61718 | -1/Command | Found Quantum Capacitor 61829 | -1/Command | Found Exp. System Purifier 64570 | -1/Command | Found Exp. Core Analyzer 64800 | -1/Command | Found Exp. Targeting Computer 65010 | -1/Command | Phase Generator disabled 66468 | -1/Command | Attacked by Warlord forces 66984 | -1/Command | Found Exp. Powered Armor 67000 | -1/Command | Found Blast Cannon 67023 | -1/Command | Found Exp. Targeting Computer 67051 | -1/Command | Found Blast Cannon 67512 | -1/Command | Found Exp. Targeting Computer 69681 | -1/Command | Found Zero-point Reactor 69683 | -1/Command | Found Vortex Chain Reactor 69699 | -1/Command | Found Multirail 69705 | -1/Command | Found Centrium Heavy Armor Plating 69708 | -1/Command | Found Adv. Particle Accelerator 69714 | -1/Command | Found Spectral Analyzer 70547 | -1/Command | Build established: Generator-Tank 72255 | -1/Command | Build established: Generator-Mutant 72418 | -1/Command | Warped through subspace to slip node 72418 | -1/Command | Discovered new exit (range 5) 72428 | -1/Command | Entered Access_0 72429 | -1/Access_0 | Sensed 2 artifacts in vicinity 72429 | -1/Access_0 | Met Architect 72430 | -1/Access_0 | Architect warped through subspace 72443 | -1/Access_0 | Destroyed A8 72492 | -1/Access_0 | Architect warped through subspace 72518 | -1/Access_0 | Architect warped through subspace 72557 | -1/Access_0 | Architect warped through subspace 72575 | -1/Access_0 | Subspace Access Node disabled 72613 | -1/Access_0 | Architect warped through subspace 72633 | -1/Access_0 | Found Prototype Device 72637 | -1/Access_0 | Found Exp. Weapon Cycler 72647 | -1/Access_0 | Architect warped through subspace 72673 | -1/Access_0 | Architect warped through subspace 72702 | -1/Access_0 | Architect warped through subspace 72717 | -1/Access_0 | Destroyed 9 combat bots 72727 | -1/Access_0 | A6 warped into view 72729 | -1/Access_0 | Architect warped through subspace 72743 | -1/Access_0 | Destroyed A6 72752 | -1/Access_0 | Found Femtoactuators 72760 | -1/Access_0 | Architect warped through subspace 72780 | -1/Access_0 | Architect warped through subspace 72806 | -1/Access_0 | Architect warped through subspace 72826 | -1/Access_0 | Architect warped through subspace 72847 | -1/Access_0 | Architect warped through subspace 72872 | -1/Access_0 | Architect warped through subspace 72878 | -1/Access_0 | Subspace Access Node disabled 72909 | -1/Access_0 | Architect warped through subspace 72946 | -1/Access_0 | Architect warped through subspace 72953 | -1/Access_0 | Found Exp. Powered Armor 72958 | -1/Access_0 | Found Exp. Powered Armor 72971 | -1/Access_0 | Architect warped through subspace 72998 | -1/Access_0 | A5 warped into view 73003 | -1/Access_0 | Destroyed A5 73040 | -1/Access_0 | Core integrity fell below 50% 73051 | -1/Access_0 | Architect warped through subspace 73094 | -1/Access_0 | Architect warped through subspace 73137 | -1/Access_0 | Architect warped through subspace 73156 | -1/Access_0 | Destroyed A2 73161 | -1/Access_0 | Extracted Singularity Gate Test 138-C access codes from A2's data core 73192 | -1/Access_0 | Architect warped through subspace 73244 | -1/Access_0 | Architect warped through subspace 73279 | -1/Access_0 | Started Test 138-B, establishing a local singularity 73279 | -1/Access_0 | Singularity Gate disabled 73294 | -1/Access_0 | Singularity Gate disabled 73314 | -1/Access_0 | Architect warped through subspace 73361 | -1/Access_0 | Architect warped through subspace 73411 | -1/Access_0 | Architect warped through subspace 73431 | -1/Access_0 | Architect warped through subspace 73449 | -1/Access_0 | Architect warped through subspace 73475 | -1/Access_0 | Architect warped through subspace 73508 | -1/Access_0 | Architect warped through subspace 73533 | -1/Access_0 | Architect warped through subspace 73534 | -1/Access_0 | Subspace Access Node disabled 73564 | -1/Access_0 | Architect warped through subspace 73582 | -1/Access_0 | Core integrity fell below 20% 73653 | -1/Access_0 | Architect warped through subspace 73669 | -1/Access_0 | Architect warped through subspace 73682 | -1/Access_0 | A4 warped into view 73689 | -1/Access_0 | Destroyed A4 73692 | -1/Access_0 | Subspace Access Node disabled 73697 | -1/Access_0 | Destroyed Architect 73722 | -1/Access_0 | Found Hpw. Transdimensional Reconstructor 73858 | -1/Access_0 | Found Exp. Powered Armor 73867 | -1/Access_0 | Found Exp. Powered Armor 74339 | -1/Access_0 | Found Exp. Powered Armor 74346 | -1/Access_0 | Found Exp. Powered Armor 74612 | -1/Access_0 | Found Integrated Dissipator 74612 | -1/Access_0 | Installed Integrated Dissipator, increased core heat dissipation (+20) 75499 | -1/Access_0 | A3 warped into view 75509 | -1/Access_0 | Destroyed A3 75519 | -1/Access_0 | Found Prototype Ballistic Gun 75519 | -1/Access_0 | Identified A3's Sniper Rifle 76997 | -1/Access_0 | Build established: Generator-Gladiator 77234 | -1/Access_0 | Found Sigix Corpse 77279 | -1/Access_0 | Found Hpw. Transdimensional Reconstructor 77369 | -1/Access_0 | Identified Desublimator 77551 | -1/Access_0 | Build established: Generator-Mutant 77922 | -1/Access_0 | Found Prototype Device 77922 | -1/Access_0 | Identified ST Field Compressor 77953 | -1/Access_0 | Warped through subspace to slip node 77953 | -1/Access_0 | Discovered new exit (range 8) 77971 | *** | Heading to fleet! Last Messages --------------- 77688_ 6LT=XETMRWZUM 2FP2YNNM&LI&ZKC 77776_ System corrupted: Matter fused (-7). 77918_ Dropped Centrium Medium Armor Plating. 77918_ Acquired Exp. Cooling System. 77920_ Dropped Exp. Cooling System. 77922_ Acquired Prototype Device. 77922_ Identified ST Field Compressor. 77923_ Dropped ST Field Compressor. 77926_ Dropped A3's Sniper Rifle. 77928_ System corrupted: Energy discharge (-334). 77928_ Acquired Prototype Energy Gun. 77928_ Identified Gatling Beam. 77929_ Dropped Gatling Beam. 77931_ Acquired A3's Sniper Rifle. 77936_ Acquired Centrium Medium Armor Plating. 77939_ Dropped Core Stripper. 77940_ Acquired Core Stripper. 77953_ Warped through subspace, drawn to slip node. 77953_ EXIT=FOUND 77956_ Acquired Lrn. Terrain Scanner. Map ----- +----------------------------------------------------+ | | | | | | | | | | | | | | | | | | | | | | | | | | | | | | | | | ?????????????????????????????????????????????????? | | ?????????????????????????????????????????????????? | | ?????????????????????????????????????????????????? | | ?????????????????????????????????????????????????? | | ?????????????????????????????????????????????????? | | ?????????????????????????????????????????????????? | | ????????????????????????###??????????????????????? | | ???????????????????????## ##?????????????????????? | | ???????????????????????# #?????????????????????? | | ???????????????????????# @ #?????????????????????? | | ??????????????????????## #?????????????????????? | | ??????????????????????# #?????????????????????? | | ??????????????????????# ##?????????????????????? | | ??????????????????????## #?????????????????????? | | ??????????????????????# #?????????????????????? | | ??????????????????????# ##?????????????????????? | | ??????????????????????# < #?????????????????????? | | ??????????????????????# ##?????????????????????? | | ??????????????????????## #??????????????????????? | | ???????????????????????####??????????????????????? | | ?????????????????????????????????????????????????? | | ?????????????????????????????????????????????????? | | ?????????????????????????????????????????????????? | | ?????????????????????????????????????????????????? | | ?????????????????????????????????????????????????? | | ?????????????????????????????????????????????????? | | ?????????????????????????????????????????????????? | | ?????????????????????????????????????????????????? | | ?????????????????????????????????????????????????? | | ?????????????????????????????????????????????????? | | ?????????????????????????????????????????????????? | | ?????????????????????????????????????????????????? | | ?????????????????????????????????????????????????? | | ?????????????????????????????????????????????????? | +----------------------------------------------------+ Best States ------------- Heat Dissipation 150 Coolant Potential 120 Energy Generation 137 Energy Capacity 2450 Matter Stores 300 Matter Capacity 300 Sight Range 24 Terrain Scan Range 24 Terrain Scan Density 1010 Jamming Range 16 Additional Mass Support 20 Armor Coverage 2850 Resistance: KI 15 Resistance: TH 15 Resistance: EX 15 Resistance: EM 75 Resistance: I 15 Resistance: S 15 Resistance: P 15 Core Shielding 40 Weapon Shielding 100 Point Defense Rating 240 Weapon Cycling 30 Melee Speed Boost 50 Phase Shifting 8 Evasion (%) 55 Targeting Accuracy 32 Target Analysis 10 Core Analysis 8 Recoil Reduction 8 Energy Filtering 50 Particle Charging 50 Kinecelleration 30 Offensive Hacking 30 Defensive Hacking 16 Item Schematics ----------------- Exp. Force Field | -3/Quarantine | Scanalyzed Robot Schematics ------------------ None Fabricated ------------ Huge Storage Unit | x1 | -4/Factory Hyb. Antimatter Reactor | x2 | -4/Factory | Preloaded Adv. Heavy Siege Treads | x2 | -4/Factory | Preloaded Alien Tech Used ----------------- Core Expander Core Reset Matrix Core Stripper Integrated Mediator Microwarp Drive Integrated Reactor LRC Energy Well LRC Boosters Subatomic Replicator Supercharged Integrated Dissipator Transdimensional Reconstructor Integrated Dissipator High-powered Transdimensional Reconstructor Achievements -------------- None Challenges ------------ None Game ------ Seed DisruptorThrusterImmobilizer Manual? 0 Play Time 07:36:45 Cumulative 763.4 hours Start 2022.07.05 @ 19:06:11 End 2022.07.07 @ 19:30:10 Sessions 5 Manual Loads 0 Difficulty Rogue Special Mode None Game No. 328 Rogue 327 Adventurer 1 Explorer 0 Win Type 2 Total 85 Types 24/9/14/3/2/1/30/1/1 Lore% 98 Gallery% 99 Achievement% 90 Wizard Run 0 Options --------- ASCII 1 Keyboard 1 Movement Numpad Keybinds 0 Fullscreen 0 Font 18/Smallcaps Map View 76x50 Tactical HUD 1 Map Filters NONE Filters NONE Steam 1 RUN: 75c2eb68-d994-4efc-9fb1-0c5fec4e2b39